Workbook

Sheet 作成方法について
A1: 請求書の入力及び提出方法について
C8: 合 計 請 求 書
Q9: 請求日 | S9: 2025-04-30
Q10: 適格請求書番号 | S10: T - | U10: 0123456789012
D12: 〒555-0031 | P12: 住所 | Q12: 大阪府大阪市西淀川区出来島〇－〇－〇
D13: 大阪府大阪市西淀川区出来島3-1-18
P14: 社名 | Q14: 西淀川株式会社
D15: 株式会社 ツバサ建業 御中
P16: TEL | Q16: 〇〇－△△△△－□□□□
D17: 下記の通りご請求申し上げます。 | P17: FAX | Q17: 〇〇－△△△△－□□□□
D19: 当月総請求額 （税込） | F19: =Q42 -> 4978455 | P19: 【振込先】
P20: 銀行名 | Q20: 〇〇〇銀行 | S20: 支店名 | T20: △△△支店
P21: 預金種類 | Q21: 当座 | S21: 口座番号 | T21: 1234567
P22: 口座名義 | Q22: ﾌﾘｶﾞﾅ | R22: ニシヨドガワ（カ
K23: 請求書担当者名 | M23: 西淀 太郎 | Q23: 名義人 | R23: 西淀川株式会社
B25: 工事名称 | H25: 工事項目 (請負・常用) | I25: 契約金額 (税抜) | L25: 出来高 (％) | M25: 請求金額 （税抜） | P25: 交通費関連 (税込) | R25: 請求済 （％） | S25: 累計金額 (税抜) | V25: 備 考
B26: 1 | C26: 大阪市中央区S造 解体工事 | H26: 請負 | I26: 3500000 | L26: =IFERROR(M26/I26,"") -> 0.3542857143 | M26: 1240000 | R26: =IFERROR(S26/I26,"") -> 0.7 | S26: 2450000
B27: 2 | C27: 茨木市RC造 解体工事 | H27: 請負 | I27: 60000000 | L27: =IFERROR(M27/I27,"") -> 0.1 | M27: 6000000 | R27: =IFERROR(S27/I27,"") -> 0 | V27: 保留金解除
B28: 3 | C28: 茨木市RC造 解体工事 減額 | H28: 請負 | I28: -3000000 | L28: 1 | M28: -3000000 | R28: 0 | V28: 覚書締結済み
B29: 4 | C29: 神戸市会館 斫り工事 | H29: 常用 | M29: 243050 | P29: 3900
B30: 5 | C30: ※尼崎市 撤去工事 | H30: 常用 | V30: 40000
B31: 6
B32: 7
B33: 8
B34: 9
B35: 10
L37: 工事小計(税抜) | Q37: (10%) | R37: =SUM(M26:O35) -> 4483050 | T37: (8%) | V37: =SUM(V26:W35) -> 40000
L38: 消費税 | Q38: (10%) | R38: =R37*1.1-R37 -> 448305 | T38: (8%) | V38: =V37*1.08-V37 -> 3200
L39: 工事合計(税込)① | Q39: (10%) | R39: =R37+R38 -> 4931355 | T39: (8%) | V39: =V37+V38 -> 43200
L40: 交通費関連合計(税込)② | Q40: =SUM(P26:Q35) -> 3900
L41: (内消費税(10%)) | Q41: =Q40-(Q40/1.1) -> 354.5454545
L42: 総合計（①+②） | Q42: =R39+V39+Q40 -> 4978455

Sheet 請負内訳書の記載例
A1: 請負工事内訳書の記載例 （工事ごとに作成してください）
B3: 請負工事内訳書
H4: 現場名称： | L4: 大阪市西淀川区RC造 解体撤去工事 | W4: 請求日 | X4: 2025-07-31
H5: 契約工期： | L5: 2025-04-01 | P5: ～ | Q5: 2025-07-31 | W5: 会社名 | X5: 西淀川株式会社
H6: 契約金額(税抜)： | L6: 1000000
B8: 請 求 | G8: 請負内容 | M8: 請求金額 (税抜) | R8: 累計金額 (税抜) | V8: 請求後残高金額 (税抜) | Y8: 備考
B9: 第 | C9: 1 | D9: 回 | E9: 4 | F9: 月 | G9: 解体工事 | M9: =IFERROR(ROUNDDOWN(O9/L$6,3),"") -> 0.1 | O9: 100000 | R9: =IF(O9="","",SUM($O$9:O9)) -> 100000 | V9: =IF(O9="","",(1-$M9:M$31)) -> 0.9 | W9: =IF(O9="","",IF(($L$6-SUM($O$9:O9))=0,"0 ",$L$6-SUM($O$9:O9))) -> 900000 | X9: =IF(#REF!="","",IF(($L$6-SUM(#REF!))=0,"0 ",$L$6-SUM(#REF!))) -> 
B10: 第 | C10: 2 | D10: 回 | E10: 5 | F10: 月 | G10: 解体工事 | M10: =IFERROR(ROUNDDOWN(O10/L$6,3),"") -> 0.1 | O10: 100000 | R10: =IF(O10="","",SUM($O$9:O10)) -> 200000 | V10: =IF(O10="","",(V9-M10)) -> 0.8 | W10: =IF(O10="","",IF(($L$6-SUM($O$9:O10))=0,"0 ",$L$6-SUM($O$9:O10))) -> 800000 | X10: =IF(#REF!="","",IF(($L$6-SUM(#REF!))=0,"0 ",$L$6-SUM(#REF!))) -> 
B11: 第 | C11: 3 | D11: 回 | E11: 6 | F11: 月 | G11: 解体工事 | M11: =IFERROR(ROUNDDOWN(O11/L$6,3),"") -> 0.2 | O11: 200000 | R11: =IF(O11="","",SUM($O$9:O11)) -> 400000 | V11: =IF(O11="","",(V10-M11)) -> 0.6 | W11: =IF(O11="","",IF(($L$6-SUM($O$9:O11))=0,"0 ",$L$6-SUM($O$9:O11))) -> 600000 | X11: =IF(#REF!="","",IF(($L$6-SUM(#REF!))=0,"0 ",$L$6-SUM(#REF!))) -> 
B12: 第 | C12: 4 | D12: 回 | E12: 7 | F12: 月 | G12: 解体工事 | M12: 0.6 | O12: 600000 | R12: =IF(O12="","",SUM($O$9:O12)) -> 1000000 | W12: =IF(O12="","",IF(($L$6-SUM($O$9:O12))=0,"0 ",$L$6-SUM($O$9:O12))) -> 0 | X12: =IF(#REF!="","",IF(($L$6-SUM(#REF!))=0,"0 ",$L$6-SUM(#REF!))) -> 
B13: 第 | C13: 5 | D13: 回 | F13: 月 | M13: 0 | R13: =IF(O13="","",IF(W12="0 ","",SUM($O$9:O12))) ->  | V13: =IF(O13="","",(V12-M13)) ->  | W13: =IF(O13="","",IF(($L$6-SUM($O$9:O13))=0,"0 ",$L$6-SUM($O$9:O13))) ->  | X13: =IF(#REF!="","",IF(($L$6-SUM(#REF!))=0,"0 ",$L$6-SUM(#REF!))) -> 
B14: 第 | C14: 6 | D14: 回 | F14: 月 | M14: 0 | R14: =IF(O14="","",IF(W13="0 ","",SUM($O$9:O13))) ->  | W14: =IF(O14="","",IF(($L$6-SUM($O$9:O14))=0,"0 ",$L$6-SUM($O$9:O14))) ->  | X14: =IF(#REF!="","",IF(($L$6-SUM(#REF!))=0,"0 ",$L$6-SUM(#REF!))) -> 
B15: 第 | C15: 7 | D15: 回 | F15: 月 | M15: 0 | R15: =IF(O15="","",IF(W14="0 ","",SUM($O$9:O14))) ->  | W15: =IF(O15="","",IF(($L$6-SUM($O$9:O15))=0,"0 ",$L$6-SUM($O$9:O15))) ->  | X15: =IF(#REF!="","",IF(($L$6-SUM(#REF!))=0,"0 ",$L$6-SUM(#REF!))) -> 
B16: 第 | C16: 8 | D16: 回 | F16: 月 | M16: 0 | R16: =IF(O16="","",IF(W15="0 ","",SUM($O$9:O15))) ->  | W16: =IF(O16="","",IF(($L$6-SUM($O$9:O16))=0,"0 ",$L$6-SUM($O$9:O16))) ->  | X16: =IF(#REF!="","",IF(($L$6-SUM(#REF!))=0,"0 ",$L$6-SUM(#REF!))) -> 
B17: 第 | C17: 9 | D17: 回 | F17: 月 | M17: 0 | R17: =IF(O17="","",IF(W16="0 ","",SUM($O$9:O16))) ->  | W17: =IF(O17="","",IF(($L$6-SUM($O$9:O17))=0,"0 ",$L$6-SUM($O$9:O17))) ->  | X17: =IF(#REF!="","",IF(($L$6-SUM(#REF!))=0,"0 ",$L$6-SUM(#REF!))) -> 
B18: 第 | C18: 10 | D18: 回 | F18: 月 | M18: 0 | R18: =IF(O18="","",IF(W17="0 ","",SUM($O$9:O17))) ->  | W18: =IF(O18="","",IF(($L$6-SUM($O$9:O18))=0,"0 ",$L$6-SUM($O$9:O18))) ->  | X18: =IF(#REF!="","",IF(($L$6-SUM(#REF!))=0,"0 ",$L$6-SUM(#REF!))) -> 
B19: 第 | C19: 11 | D19: 回 | F19: 月 | M19: 0 | R19: =IF(O19="","",IF(W18="0 ","",SUM($O$9:O18))) ->  | W19: =IF(O19="","",IF(($L$6-SUM($O$9:O19))=0,"0 ",$L$6-SUM($O$9:O19))) ->  | X19: =IF(#REF!="","",IF(($L$6-SUM(#REF!))=0,"0 ",$L$6-SUM(#REF!))) -> 
B20: 第 | C20: 12 | D20: 回 | F20: 月 | M20: 0 | R20: =IF(O20="","",IF(W19="0 ","",SUM($O$9:O19))) ->  | W20: =IF(O20="","",IF(($L$6-SUM($O$9:O20))=0,"0 ",$L$6-SUM($O$9:O20))) ->  | X20: =IF(#REF!="","",IF(($L$6-SUM(#REF!))=0,"0 ",$L$6-SUM(#REF!))) -> 
B21: 第 | C21: 13 | D21: 回 | F21: 月 | M21: 0 | R21: =IF(O21="","",IF(W20="0 ","",SUM($O$9:O20))) ->  | W21: =IF(O21="","",IF(($L$6-SUM($O$9:O21))=0,"0 ",$L$6-SUM($O$9:O21))) ->  | X21: =IF(#REF!="","",IF(($L$6-SUM(#REF!))=0,"0 ",$L$6-SUM(#REF!))) -> 
B22: 第 | C22: 14 | D22: 回 | F22: 月 | M22: 0 | R22: =IF(O22="","",IF(W21="0 ","",SUM($O$9:O21))) ->  | W22: =IF(O22="","",IF(($L$6-SUM($O$9:O22))=0,"0 ",$L$6-SUM($O$9:O22))) ->  | X22: =IF(#REF!="","",IF(($L$6-SUM(#REF!))=0,"0 ",$L$6-SUM(#REF!))) -> 
B23: 第 | C23: 15 | D23: 回 | F23: 月 | M23: 0 | R23: =IF(O23="","",IF(W22="0 ","",SUM($O$9:O22))) ->  | W23: =IF(O23="","",IF(($L$6-SUM($O$9:O23))=0,"0 ",$L$6-SUM($O$9:O23))) ->  | X23: =IF(#REF!="","",IF(($L$6-SUM(#REF!))=0,"0 ",$L$6-SUM(#REF!))) -> 
B24: 第 | C24: 16 | D24: 回 | F24: 月 | M24: 0 | R24: =IF(O24="","",IF(W23="0 ","",SUM($O$9:O23))) ->  | W24: =IF(O24="","",IF(($L$6-SUM($O$9:O24))=0,"0 ",$L$6-SUM($O$9:O24))) ->  | X24: =IF(#REF!="","",IF(($L$6-SUM(#REF!))=0,"0 ",$L$6-SUM(#REF!))) -> 
B25: 第 | C25: 17 | D25: 回 | F25: 月 | M25: 0 | R25: =IF(O25="","",IF(W24="0 ","",SUM($O$9:O24))) ->  | W25: =IF(O25="","",IF(($L$6-SUM($O$9:O25))=0,"0 ",$L$6-SUM($O$9:O25))) ->  | X25: =IF(#REF!="","",IF(($L$6-SUM(#REF!))=0,"0 ",$L$6-SUM(#REF!))) -> 
B26: 第 | C26: 18 | D26: 回 | F26: 月 | M26: 0 | R26: =IF(O26="","",IF(W25="0 ","",SUM($O$9:O25))) ->  | W26: =IF(O26="","",IF(($L$6-SUM($O$9:O26))=0,"0 ",$L$6-SUM($O$9:O26))) ->  | X26: =IF(#REF!="","",IF(($L$6-SUM(#REF!))=0,"0 ",$L$6-SUM(#REF!))) -> 
B27: 第 | C27: 19 | D27: 回 | F27: 月 | M27: 0 | R27: =IF(O27="","",IF(W26="0 ","",SUM($O$9:O26))) ->  | W27: =IF(O27="","",IF(($L$6-SUM($O$9:O27))=0,"0 ",$L$6-SUM($O$9:O27))) ->  | X27: =IF(#REF!="","",IF(($L$6-SUM(#REF!))=0,"0 ",$L$6-SUM(#REF!))) -> 
B28: 第 | C28: 20 | D28: 回 | F28: 月 | M28: 0 | R28: =IF(O28="","",IF(W27="0 ","",SUM($O$9:O27))) ->  | W28: =IF(O28="","",IF(($L$6-SUM($O$9:O28))=0,"0 ",$L$6-SUM($O$9:O28))) ->  | X28: =IF(#REF!="","",IF(($L$6-SUM(#REF!))=0,"0 ",$L$6-SUM(#REF!))) -> 
K30: 請求金額累計（税抜） | O30: =SUM(O9:Q28) -> 1000000 | U30: 請求後残高金額（税抜） | X30: =IF((L6-O30)=0,"0 ",L6-O30) -> 0
A34: 保留金の契約がある場合の請負工事内訳書の記載例
B37: 請負工事内訳書 | H37: 現場名称： | L37: 大阪市西淀川区RC造 解体撤去工事 | W37: 請求日 | X37: 2025-08-31
H38: 契約工期： | L38: 2025-04-01 | P38: ～ | Q38: 2025-07-31 | W38: 会社名 | X38: 西淀川株式会社
H39: 契約金額(税抜)： | L39: 1000000
B41: 請 求 | G41: 請負内容 | M41: 請求金額 (税抜) | R41: 累計金額 (税抜) | V41: 請求後残高金額 (税抜) | Y41: 保留金（10％）
B42: 第 | C42: 1 | D42: 回 | E42: 4 | F42: 月 | G42: 解体工事 | M42: 0.1 | O42: 100000 | R42: 100000 | V42: 0.9 | W42: 900000 | Y42: 保留金 | Z42: 10000
B43: 第 | C43: 2 | D43: 回 | E43: 5 | F43: 月 | G43: 解体工事 | M43: 0.1 | O43: 100000 | R43: 200000 | V43: 0.8 | W43: 800000 | Y43: 保留金 | Z43: 10000
B44: 第 | C44: 3 | D44: 回 | E44: 6 | F44: 月 | G44: 解体工事 | M44: 0.2 | O44: 200000 | R44: 400000 | V44: 0.6 | W44: 600000 | Y44: 保留金 | Z44: 20000
B45: 第 | C45: 4 | D45: 回 | E45: 7 | F45: 月 | G45: 解体工事 | M45: 0.6 | O45: 600000 | R45: 1000000 | W45: 0 | Y45: 保留金 | Z45: 60000
B46: 第 | C46: 5 | D46: 回 | E46: 8 | F46: 月 | M46: 0 | Y46: 保留金解除 | Z46: 100000
B47: 第 | C47: 6 | D47: 回 | F47: 月 | M47: =IFERROR(ROUNDDOWN(O47/L$4,3),"") ->  | R47: =IF(O47="","",IF(W46="0 ","",SUM($N$7:O46))) ->  | V47: =IF(O47="","",(V46-M47)) ->  | W47: =IF(O47="","",IF(($K$4-SUM($N$7:O47))=0,"0 ",$K$4-SUM($N$7:O47))) ->  | X47: =IF(#REF!="","",IF(($K$4-SUM(#REF!))=0,"0 ",$K$4-SUM(#REF!))) ->  | Z47: =IF(Y47="保留金",O47*0.1,IF(Y47="保留金解除",SUM($Y$7:Z46),"")) -> 
B48: 第 | C48: 7 | D48: 回 | F48: 月 | R48: =IF(O48="","",IF(W47="0 ","",SUM($N$7:O47))) ->  | W48: =IF(O48="","",IF(($K$4-SUM($N$7:O48))=0,"0 ",$K$4-SUM($N$7:O48))) ->  | X48: =IF(#REF!="","",IF(($K$4-SUM(#REF!))=0,"0 ",$K$4-SUM(#REF!))) ->  | Z48: =IF(Y48="保留金",O48*0.1,IF(Y48="保留金解除",SUM($Y$7:Z47),"")) -> 
B49: 第 | C49: 8 | D49: 回 | F49: 月 | R49: =IF(O49="","",IF(W48="0 ","",SUM($N$7:O48))) ->  | W49: =IF(O49="","",IF(($K$4-SUM($N$7:O49))=0,"0 ",$K$4-SUM($N$7:O49))) ->  | X49: =IF(#REF!="","",IF(($K$4-SUM(#REF!))=0,"0 ",$K$4-SUM(#REF!))) ->  | Z49: =IF(Y49="保留金",O49*0.1,IF(Y49="保留金解除",SUM($Y$7:Z48),"")) -> 

Sheet 常用内訳書の記載例
A1: 常用工事内訳書
F2: 現場名称： | W2: 請求日 | Y2: =#REF! -> 
F3: 出来島倉庫解体撤去工事 | W3: 会社名 | Y3: =#REF! -> 
Q5: 法定福利費
A6: 月 | B6: 日 | C6: 作業内容・品目 | I6: 数量 | J6: 単位 | K6: 単価 | M6: 金額(税抜) | Q6: 人数 | R6: 単価 | T6: 金額(税抜) | U6: 交通費関連(税込） | X6: 備考
A7: 10 | B7: 5 | C7: 解体工 | I7: 1 | J7: 名 | K7: 10000 | M7: =I7*K7 -> 10000 | Q7: 1 | R7: 1000 | T7: =Q7*R7 -> 1000 | U7: 1000 | X7: 駐車場代
C8: 1台2名 | I8: 1 | J8: 組 | K8: 10000 | M8: =I8*K8 -> 10000 | Q8: 2 | R8: 1000 | T8: =Q8*R8 -> 2000
B9: 7 | C9: 土工 | I9: 1 | J9: 名 | K9: 10000 | M9: =I9*K9 -> 10000 | T9: =Q9*R9 -> 0 | U9: 1320 | X9: 高速代
B10: 8 | C10: 警備 | I10: 1 | J10: 名 | K10: 10000 | M10: 10000 | T10: 0
C11: 警備2級 | I11: 1 | J11: 名 | K11: 10000 | M11: 10000 | T11: 0
B12: 25 | C12: アスガラ運搬 | I12: 1 | J12: 台 | K12: 10000 | M12: 10000 | T12: 0
C13: アスガラ処分 | I13: 12.3 | J13: ｔ | K13: 10000 | M13: 123000 | T13: 0
M14: 0 | T14: 0
M15: 0 | T15: 0
M16: 0 | T16: 0
M17: 0 | T17: 0
M18: 0 | T18: 0
M19: 0 | T19: 0
M20: 0 | T20: 0
M21: 0 | T21: 0
M22: 0 | T22: 0
M23: 0 | T23: 0
M24: 0 | T24: 0
M25: 0 | T25: 0
M26: 0 | T26: 0
M27: 0 | T27: 0
M28: 0 | T28: 0
M29: 0 | T29: 0
M30: 0 | T30: 0
M31: 0 | T31: 0
M32: 0 | T32: 0
L34: 常用金額小計(税抜)① | R34: 法定福利費小計(税抜)② | U34: 請求金額計(税抜)①+② | Y34: 交通費関連小計(税込)
L35: =SUM(M7:P32) -> 183000 | R35: =SUM(T7:T32) -> 3000 | U35: =SUM(L35:T35) -> 186000 | Y35: =SUM(U7:W32) -> 2320

Sheet 合計請求書
B1: 合 計 請 求 書
P2: 請求日
P3: 適格請求書番号 | R3: T -
C5: 〒555-0031 | O5: 住所
C6: 大阪府大阪市西淀川区出来島3-1-18
O7: 社名
C8: 株式会社 ツバサ建業 御中
O9: TEL
C10: 下記の通りご請求申し上げます。 | O10: FAX
C12: 当月総請求額 （税込） | E12: =P35 -> 0 | O12: 【振込先】
O13: 銀行名 | R13: 支店名
O14: 預金種類 | R14: 口座番号
O15: 口座名義 | P15: ﾌﾘｶﾞﾅ
J16: 請求書担当者名 | P16: 名義人
A18: 工事名称 | G18: 工事項目 (請負・常用) | H18: 契約金額 (税抜) | K18: 出来高 (％) | L18: 請求金額 （税抜） | O18: 交通費関連 (税込) | Q18: 請求済 （％） | R18: 累計金額 (税抜) | U18: 備 考
A19: 1 | K19: =IFERROR(ROUND(L19/H19,3),"") ->  | Q19: =IFERROR(ROUNDDOWN(R19/H19,3),"") -> 
A20: 2 | Q20: =IFERROR(ROUNDDOWN(R20/H20,3),"") -> 
A21: 3
A22: 4
A23: 5
A24: 6
A25: 7
A26: 8
A27: 9
A28: 10
K30: 工事小計(税抜) | P30: (10%) | Q30: =SUM(L19:N28) -> 0 | S30: (8%) | U30: =SUM(U19:V28) -> 0
K31: 消費税 | P31: (10%) | Q31: =Q30*1.1-Q30 -> 0 | S31: (8%) | U31: =U30*1.08-U30 -> 0
K32: 工事合計(税込)① | P32: (10%) | Q32: =Q30+Q31 -> 0 | S32: (8%) | U32: =U30+U31 -> 0
K33: 交通費関連合計(税込)② | P33: =SUM(O19:P28) -> 0
K34: (内消費税(10%)) | P34: =P33-(P33/1.1) -> 0
K35: 総合計（①+②） | P35: =Q32+U32+P33 -> 0

Sheet 請負内訳書
A1: 請負工事内訳書
G2: 現場名称： | V2: 請求日 | W2: =合計請求書!$R$2 -> 00:00:00
G3: 契約工期： | O3: ～ | V3: 会社名 | W3: =合計請求書!$P$7 -> 0
G4: 契約金額(税抜)：
A6: 請 求 | F6: 請負内容 | L6: 請求金額 (税抜) | Q6: 累計金額 (税抜) | U6: 請求後残高金額 (税抜) | X6: 備考
A7: 第 | B7: 1 | C7: 回 | E7: 月 | L7: =IFERROR(ROUND(N7/K$4,3),"") ->  | Q7: =IF(N7="","",SUM($N$7:N7)) ->  | U7: =IF(OR(K4="",N7=""),"",IF(V7/$K$4=0,"",1-L7)) ->  | V7: =IF(OR(N7="",$K$4=""),"",IF(($K$4-SUM($N$7:N7))=0,"0 ",$K$4-SUM($N$7:N7))) ->  | W7: =IF(#REF!="","",IF(($K$4-SUM(#REF!))=0,"0 ",$K$4-SUM(#REF!))) -> 
A8: 第 | B8: 2 | C8: 回 | E8: 月 | Q8: =IF(N8="","",SUM($N$7:N8)) ->  | U8: =IF(OR($K$4="",N8=""),"",IF(V8/$K$4=0,"",ROUND(V8/$K$4,3))) ->  | V8: =IF(OR(N8="",$K$4=""),"",IF(($K$4-SUM($N$7:N8))=0,"0 ",$K$4-SUM($N$7:N8))) ->  | W8: =IF(#REF!="","",IF(($K$4-SUM(#REF!))=0,"0 ",$K$4-SUM(#REF!))) -> 
A9: 第 | B9: 3 | C9: 回 | E9: 月 | Q9: =IF(N9="","",SUM($N$7:N9)) ->  | V9: =IF(OR(N9="",$K$4=""),"",IF(($K$4-SUM($N$7:N9))=0,"0 ",$K$4-SUM($N$7:N9))) ->  | W9: =IF(#REF!="","",IF(($K$4-SUM(#REF!))=0,"0 ",$K$4-SUM(#REF!))) -> 
A10: 第 | B10: 4 | C10: 回 | E10: 月 | Q10: =IF(N10="","",SUM($N$7:N10)) ->  | V10: =IF(OR(N10="",$K$4=""),"",IF(($K$4-SUM($N$7:N10))=0,"0 ",$K$4-SUM($N$7:N10))) ->  | W10: =IF(#REF!="","",IF(($K$4-SUM(#REF!))=0,"0 ",$K$4-SUM(#REF!))) -> 
A11: 第 | B11: 5 | C11: 回 | E11: 月 | Q11: =IF(N11="","",SUM($N$7:N11)) ->  | V11: =IF(OR(N11="",$K$4=""),"",IF(($K$4-SUM($N$7:N11))=0,"0 ",$K$4-SUM($N$7:N11))) ->  | W11: =IF(#REF!="","",IF(($K$4-SUM(#REF!))=0,"0 ",$K$4-SUM(#REF!))) -> 
A12: 第 | B12: 6 | C12: 回 | E12: 月 | Q12: =IF(N12="","",SUM($N$7:N12)) ->  | V12: =IF(OR(N12="",$K$4=""),"",IF(($K$4-SUM($N$7:N12))=0,"0 ",$K$4-SUM($N$7:N12))) ->  | W12: =IF(#REF!="","",IF(($K$4-SUM(#REF!))=0,"0 ",$K$4-SUM(#REF!))) -> 
A13: 第 | B13: 7 | C13: 回 | E13: 月 | Q13: =IF(N13="","",SUM($N$7:N13)) ->  | V13: =IF(OR(N13="",$K$4=""),"",IF(($K$4-SUM($N$7:N13))=0,"0 ",$K$4-SUM($N$7:N13))) ->  | W13: =IF(#REF!="","",IF(($K$4-SUM(#REF!))=0,"0 ",$K$4-SUM(#REF!))) -> 
A14: 第 | B14: 8 | C14: 回 | E14: 月 | Q14: =IF(N14="","",SUM($N$7:N14)) ->  | V14: =IF(OR(N14="",$K$4=""),"",IF(($K$4-SUM($N$7:N14))=0,"0 ",$K$4-SUM($N$7:N14))) ->  | W14: =IF(#REF!="","",IF(($K$4-SUM(#REF!))=0,"0 ",$K$4-SUM(#REF!))) -> 
A15: 第 | B15: 9 | C15: 回 | E15: 月 | Q15: =IF(N15="","",SUM($N$7:N15)) ->  | V15: =IF(OR(N15="",$K$4=""),"",IF(($K$4-SUM($N$7:N15))=0,"0 ",$K$4-SUM($N$7:N15))) ->  | W15: =IF(#REF!="","",IF(($K$4-SUM(#REF!))=0,"0 ",$K$4-SUM(#REF!))) -> 
A16: 第 | B16: 10 | C16: 回 | E16: 月 | Q16: =IF(N16="","",SUM($N$7:N16)) ->  | V16: =IF(OR(N16="",$K$4=""),"",IF(($K$4-SUM($N$7:N16))=0,"0 ",$K$4-SUM($N$7:N16))) ->  | W16: =IF(#REF!="","",IF(($K$4-SUM(#REF!))=0,"0 ",$K$4-SUM(#REF!))) -> 
A17: 第 | B17: 11 | C17: 回 | E17: 月 | Q17: =IF(N17="","",SUM($N$7:N17)) ->  | V17: =IF(OR(N17="",$K$4=""),"",IF(($K$4-SUM($N$7:N17))=0,"0 ",$K$4-SUM($N$7:N17))) ->  | W17: =IF(#REF!="","",IF(($K$4-SUM(#REF!))=0,"0 ",$K$4-SUM(#REF!))) -> 
A18: 第 | B18: 12 | C18: 回 | E18: 月 | Q18: =IF(N18="","",SUM($N$7:N18)) ->  | V18: =IF(OR(N18="",$K$4=""),"",IF(($K$4-SUM($N$7:N18))=0,"0 ",$K$4-SUM($N$7:N18))) ->  | W18: =IF(#REF!="","",IF(($K$4-SUM(#REF!))=0,"0 ",$K$4-SUM(#REF!))) -> 
A19: 第 | B19: 13 | C19: 回 | E19: 月 | Q19: =IF(N19="","",SUM($N$7:N19)) ->  | V19: =IF(OR(N19="",$K$4=""),"",IF(($K$4-SUM($N$7:N19))=0,"0 ",$K$4-SUM($N$7:N19))) ->  | W19: =IF(#REF!="","",IF(($K$4-SUM(#REF!))=0,"0 ",$K$4-SUM(#REF!))) -> 
A20: 第 | B20: 14 | C20: 回 | E20: 月 | Q20: =IF(N20="","",SUM($N$7:N20)) ->  | V20: =IF(OR(N20="",$K$4=""),"",IF(($K$4-SUM($N$7:N20))=0,"0 ",$K$4-SUM($N$7:N20))) ->  | W20: =IF(#REF!="","",IF(($K$4-SUM(#REF!))=0,"0 ",$K$4-SUM(#REF!))) -> 
A21: 第 | B21: 15 | C21: 回 | E21: 月 | Q21: =IF(N21="","",SUM($N$7:N21)) ->  | V21: =IF(OR(N21="",$K$4=""),"",IF(($K$4-SUM($N$7:N21))=0,"0 ",$K$4-SUM($N$7:N21))) ->  | W21: =IF(#REF!="","",IF(($K$4-SUM(#REF!))=0,"0 ",$K$4-SUM(#REF!))) -> 
A22: 第 | B22: 16 | C22: 回 | E22: 月 | Q22: =IF(N22="","",SUM($N$7:N22)) ->  | V22: =IF(OR(N22="",$K$4=""),"",IF(($K$4-SUM($N$7:N22))=0,"0 ",$K$4-SUM($N$7:N22))) ->  | W22: =IF(#REF!="","",IF(($K$4-SUM(#REF!))=0,"0 ",$K$4-SUM(#REF!))) -> 
A23: 第 | B23: 17 | C23: 回 | E23: 月 | Q23: =IF(N23="","",SUM($N$7:N23)) ->  | V23: =IF(OR(N23="",$K$4=""),"",IF(($K$4-SUM($N$7:N23))=0,"0 ",$K$4-SUM($N$7:N23))) ->  | W23: =IF(#REF!="","",IF(($K$4-SUM(#REF!))=0,"0 ",$K$4-SUM(#REF!))) -> 
A24: 第 | B24: 18 | C24: 回 | E24: 月 | Q24: =IF(N24="","",SUM($N$7:N24)) ->  | V24: =IF(OR(N24="",$K$4=""),"",IF(($K$4-SUM($N$7:N24))=0,"0 ",$K$4-SUM($N$7:N24))) ->  | W24: =IF(#REF!="","",IF(($K$4-SUM(#REF!))=0,"0 ",$K$4-SUM(#REF!))) -> 
A25: 第 | B25: 19 | C25: 回 | E25: 月 | Q25: =IF(N25="","",SUM($N$7:N25)) ->  | V25: =IF(OR(N25="",$K$4=""),"",IF(($K$4-SUM($N$7:N25))=0,"0 ",$K$4-SUM($N$7:N25))) ->  | W25: =IF(#REF!="","",IF(($K$4-SUM(#REF!))=0,"0 ",$K$4-SUM(#REF!))) -> 
A26: 第 | B26: 20 | C26: 回 | E26: 月 | Q26: =IF(N26="","",SUM($N$7:N26)) ->  | V26: =IF(OR(N26="",$K$4=""),"",IF(($K$4-SUM($N$7:N26))=0,"0 ",$K$4-SUM($N$7:N26))) ->  | W26: =IF(#REF!="","",IF(($K$4-SUM(#REF!))=0,"0 ",$K$4-SUM(#REF!))) -> 
J28: 請求金額累計（税抜） | N28: =SUM(N7:P26) -> 0 | T28: 請求後残高金額（税抜） | W28: =IF(K4="","",IF((K4-N28)=0,"0 ",K4-N28)) -> 
A30: 請負工事内訳書
G31: 現場名称： | V31: 請求日 | W31: =合計請求書!$R$2 -> 00:00:00
G32: 契約工期： | O32: ～ | V32: 会社名 | W32: =合計請求書!$P$7 -> 0
G33: 契約金額(税抜)：
A35: 請 求 | F35: 請負内容 | L35: 請求金額 (税抜) | Q35: 累計金額 (税抜) | U35: 請求後残高金額 (税抜) | X35: 備考
A36: 第 | B36: 1 | C36: 回 | E36: 月 | L36: =IFERROR(ROUND(N36/K$33,3),"") ->  | Q36: =IF(N36="","",SUM($N$36:N36)) ->  | U36: =IF(OR(K33="",N36=""),"",IF(V36/$K$33=0,"",1-L36)) ->  | V36: =IF(OR(N36="",$K$33=""),"",IF(($K$33-SUM($N$36:N36))=0,"0 ",$K$33-SUM($N$36:N36))) ->  | W36: =IF(#REF!="","",IF(($K$4-SUM(#REF!))=0,"0 ",$K$4-SUM(#REF!))) -> 
A37: 第 | B37: 2 | C37: 回 | E37: 月 | L37: =IFERROR(N37/K$33,"") ->  | Q37: =IF(N37="","",SUM($N$36:N37)) ->  | U37: =IF(OR($K$33="",N37=""),"",IF(V37/$K$33=0,"",ROUND(V37/$K$33,3))) ->  | V37: =IF(OR(N37="",$K$33=""),"",IF(($K$33-SUM($N$36:N37))=0,"0 ",$K$33-SUM($N$36:N37))) ->  | W37: =IF(#REF!="","",IF(($K$4-SUM(#REF!))=0,"0 ",$K$4-SUM(#REF!))) -> 
A38: 第 | B38: 3 | C38: 回 | E38: 月 | Q38: =IF(N38="","",SUM($N$36:N38)) ->  | V38: =IF(OR(N38="",$K$33=""),"",IF(($K$33-SUM($N$36:N38))=0,"0 ",$K$33-SUM($N$36:N38))) ->  | W38: =IF(#REF!="","",IF(($K$4-SUM(#REF!))=0,"0 ",$K$4-SUM(#REF!))) -> 
A39: 第 | B39: 4 | C39: 回 | E39: 月 | Q39: =IF(N39="","",SUM($N$36:N39)) ->  | V39: =IF(OR(N39="",$K$33=""),"",IF(($K$33-SUM($N$36:N39))=0,"0 ",$K$33-SUM($N$36:N39))) ->  | W39: =IF(#REF!="","",IF(($K$4-SUM(#REF!))=0,"0 ",$K$4-SUM(#REF!))) -> 
A40: 第 | B40: 5 | C40: 回 | E40: 月 | Q40: =IF(N40="","",SUM($N$36:N40)) ->  | V40: =IF(OR(N40="",$K$33=""),"",IF(($K$33-SUM($N$36:N40))=0,"0 ",$K$33-SUM($N$36:N40))) ->  | W40: =IF(#REF!="","",IF(($K$4-SUM(#REF!))=0,"0 ",$K$4-SUM(#REF!))) -> 
A41: 第 | B41: 6 | C41: 回 | E41: 月 | Q41: =IF(N41="","",SUM($N$36:N41)) ->  | V41: =IF(OR(N41="",$K$33=""),"",IF(($K$33-SUM($N$36:N41))=0,"0 ",$K$33-SUM($N$36:N41))) ->  | W41: =IF(#REF!="","",IF(($K$4-SUM(#REF!))=0,"0 ",$K$4-SUM(#REF!))) -> 
A42: 第 | B42: 7 | C42: 回 | E42: 月 | Q42: =IF(N42="","",SUM($N$36:N42)) ->  | V42: =IF(OR(N42="",$K$33=""),"",IF(($K$33-SUM($N$36:N42))=0,"0 ",$K$33-SUM($N$36:N42))) ->  | W42: =IF(#REF!="","",IF(($K$4-SUM(#REF!))=0,"0 ",$K$4-SUM(#REF!))) -> 
A43: 第 | B43: 8 | C43: 回 | E43: 月 | Q43: =IF(N43="","",SUM($N$36:N43)) ->  | V43: =IF(OR(N43="",$K$33=""),"",IF(($K$33-SUM($N$36:N43))=0,"0 ",$K$33-SUM($N$36:N43))) ->  | W43: =IF(#REF!="","",IF(($K$4-SUM(#REF!))=0,"0 ",$K$4-SUM(#REF!))) -> 
A44: 第 | B44: 9 | C44: 回 | E44: 月 | Q44: =IF(N44="","",SUM($N$36:N44)) ->  | V44: =IF(OR(N44="",$K$33=""),"",IF(($K$33-SUM($N$36:N44))=0,"0 ",$K$33-SUM($N$36:N44))) ->  | W44: =IF(#REF!="","",IF(($K$4-SUM(#REF!))=0,"0 ",$K$4-SUM(#REF!))) -> 
A45: 第 | B45: 10 | C45: 回 | E45: 月 | Q45: =IF(N45="","",SUM($N$36:N45)) ->  | V45: =IF(OR(N45="",$K$33=""),"",IF(($K$33-SUM($N$36:N45))=0,"0 ",$K$33-SUM($N$36:N45))) ->  | W45: =IF(#REF!="","",IF(($K$4-SUM(#REF!))=0,"0 ",$K$4-SUM(#REF!))) -> 
A46: 第 | B46: 11 | C46: 回 | E46: 月 | Q46: =IF(N46="","",SUM($N$36:N46)) ->  | V46: =IF(OR(N46="",$K$33=""),"",IF(($K$33-SUM($N$36:N46))=0,"0 ",$K$33-SUM($N$36:N46))) ->  | W46: =IF(#REF!="","",IF(($K$4-SUM(#REF!))=0,"0 ",$K$4-SUM(#REF!))) -> 
A47: 第 | B47: 12 | C47: 回 | E47: 月 | Q47: =IF(N47="","",SUM($N$36:N47)) ->  | V47: =IF(OR(N47="",$K$33=""),"",IF(($K$33-SUM($N$36:N47))=0,"0 ",$K$33-SUM($N$36:N47))) ->  | W47: =IF(#REF!="","",IF(($K$4-SUM(#REF!))=0,"0 ",$K$4-SUM(#REF!))) -> 
A48: 第 | B48: 13 | C48: 回 | E48: 月 | Q48: =IF(N48="","",SUM($N$36:N48)) ->  | V48: =IF(OR(N48="",$K$33=""),"",IF(($K$33-SUM($N$36:N48))=0,"0 ",$K$33-SUM($N$36:N48))) ->  | W48: =IF(#REF!="","",IF(($K$4-SUM(#REF!))=0,"0 ",$K$4-SUM(#REF!))) -> 
A49: 第 | B49: 14 | C49: 回 | E49: 月 | Q49: =IF(N49="","",SUM($N$36:N49)) ->  | V49: =IF(OR(N49="",$K$33=""),"",IF(($K$33-SUM($N$36:N49))=0,"0 ",$K$33-SUM($N$36:N49))) ->  | W49: =IF(#REF!="","",IF(($K$4-SUM(#REF!))=0,"0 ",$K$4-SUM(#REF!))) -> 
A50: 第 | B50: 15 | C50: 回 | E50: 月 | Q50: =IF(N50="","",SUM($N$36:N50)) ->  | V50: =IF(OR(N50="",$K$33=""),"",IF(($K$33-SUM($N$36:N50))=0,"0 ",$K$33-SUM($N$36:N50))) ->  | W50: =IF(#REF!="","",IF(($K$4-SUM(#REF!))=0,"0 ",$K$4-SUM(#REF!))) -> 
A51: 第 | B51: 16 | C51: 回 | E51: 月 | Q51: =IF(N51="","",SUM($N$36:N51)) ->  | V51: =IF(OR(N51="",$K$33=""),"",IF(($K$33-SUM($N$36:N51))=0,"0 ",$K$33-SUM($N$36:N51))) ->  | W51: =IF(#REF!="","",IF(($K$4-SUM(#REF!))=0,"0 ",$K$4-SUM(#REF!))) -> 
A52: 第 | B52: 17 | C52: 回 | E52: 月 | Q52: =IF(N52="","",SUM($N$36:N52)) ->  | V52: =IF(OR(N52="",$K$33=""),"",IF(($K$33-SUM($N$36:N52))=0,"0 ",$K$33-SUM($N$36:N52))) ->  | W52: =IF(#REF!="","",IF(($K$4-SUM(#REF!))=0,"0 ",$K$4-SUM(#REF!))) -> 
A53: 第 | B53: 18 | C53: 回 | E53: 月 | Q53: =IF(N53="","",SUM($N$36:N53)) ->  | V53: =IF(OR(N53="",$K$33=""),"",IF(($K$33-SUM($N$36:N53))=0,"0 ",$K$33-SUM($N$36:N53))) ->  | W53: =IF(#REF!="","",IF(($K$4-SUM(#REF!))=0,"0 ",$K$4-SUM(#REF!))) -> 
A54: 第 | B54: 19 | C54: 回 | E54: 月 | Q54: =IF(N54="","",SUM($N$36:N54)) ->  | V54: =IF(OR(N54="",$K$33=""),"",IF(($K$33-SUM($N$36:N54))=0,"0 ",$K$33-SUM($N$36:N54))) ->  | W54: =IF(#REF!="","",IF(($K$4-SUM(#REF!))=0,"0 ",$K$4-SUM(#REF!))) -> 
A55: 第 | B55: 20 | C55: 回 | E55: 月 | Q55: =IF(N55="","",SUM($N$36:N55)) ->  | V55: =IF(OR(N55="",$K$33=""),"",IF(($K$33-SUM($N$36:N55))=0,"0 ",$K$33-SUM($N$36:N55))) ->  | W55: =IF(#REF!="","",IF(($K$4-SUM(#REF!))=0,"0 ",$K$4-SUM(#REF!))) -> 
J57: 請求金額累計（税抜） | N57: =SUM(N36:P55) -> 0 | T57: 請求後残高金額（税抜） | W57: =IF(K33="","",IF((K33-N57)=0,"0 ",K33-N57)) -> 
A59: 請負工事内訳書
G60: 現場名称： | V60: 請求日 | W60: =合計請求書!$R$2 -> 00:00:00
G61: 契約工期： | O61: ～ | V61: 会社名 | W61: =合計請求書!$P$7 -> 0
G62: 契約金額(税抜)：
A64: 請 求 | F64: 請負内容 | L64: 請求金額 (税抜) | Q64: 累計金額 (税抜) | U64: 請求後残高金額 (税抜) | X64: 備考
A65: 第 | B65: 1 | C65: 回 | E65: 月 | L65: =IFERROR(ROUND(N65/K$62,3),"") ->  | Q65: =IF(N65="","",SUM($N$65:N65)) ->  | U65: =IF(OR(K62="",N65=""),"",IF(V65/$K$62=0,"",1-L65)) ->  | V65: =IF(OR(N65="",$K$62=""),"",IF(($K$62-SUM($N$65:N65))=0,"0 ",$K$62-SUM($N$65:N65))) ->  | W65: =IF(#REF!="","",IF(($K$4-SUM(#REF!))=0,"0 ",$K$4-SUM(#REF!))) -> 
A66: 第 | B66: 2 | C66: 回 | E66: 月 | Q66: =IF(N66="","",SUM($N$65:N66)) ->  | U66: =IF(OR($K$62="",N66=""),"",IF(V66/$K$62=0,"",ROUND(V66/$K$62,3))) ->  | V66: =IF(OR(N66="",$K$62=""),"",IF(($K$62-SUM($N$65:N66))=0,"0 ",$K$62-SUM($N$65:N66))) ->  | W66: =IF(#REF!="","",IF(($K$4-SUM(#REF!))=0,"0 ",$K$4-SUM(#REF!))) -> 
A67: 第 | B67: 3 | C67: 回 | E67: 月 | Q67: =IF(N67="","",SUM($N$65:N67)) ->  | V67: =IF(OR(N67="",$K$62=""),"",IF(($K$62-SUM($N$65:N67))=0,"0 ",$K$62-SUM($N$65:N67))) ->  | W67: =IF(#REF!="","",IF(($K$4-SUM(#REF!))=0,"0 ",$K$4-SUM(#REF!))) -> 
A68: 第 | B68: 4 | C68: 回 | E68: 月 | Q68: =IF(N68="","",SUM($N$65:N68)) ->  | V68: =IF(OR(N68="",$K$62=""),"",IF(($K$62-SUM($N$65:N68))=0,"0 ",$K$62-SUM($N$65:N68))) ->  | W68: =IF(#REF!="","",IF(($K$4-SUM(#REF!))=0,"0 ",$K$4-SUM(#REF!))) -> 
A69: 第 | B69: 5 | C69: 回 | E69: 月 | Q69: =IF(N69="","",SUM($N$65:N69)) ->  | V69: =IF(OR(N69="",$K$62=""),"",IF(($K$62-SUM($N$65:N69))=0,"0 ",$K$62-SUM($N$65:N69))) ->  | W69: =IF(#REF!="","",IF(($K$4-SUM(#REF!))=0,"0 ",$K$4-SUM(#REF!))) -> 
A70: 第 | B70: 6 | C70: 回 | E70: 月 | Q70: =IF(N70="","",SUM($N$65:N70)) ->  | V70: =IF(OR(N70="",$K$62=""),"",IF(($K$62-SUM($N$65:N70))=0,"0 ",$K$62-SUM($N$65:N70))) ->  | W70: =IF(#REF!="","",IF(($K$4-SUM(#REF!))=0,"0 ",$K$4-SUM(#REF!))) -> 
A71: 第 | B71: 7 | C71: 回 | E71: 月 | Q71: =IF(N71="","",SUM($N$65:N71)) ->  | V71: =IF(OR(N71="",$K$62=""),"",IF(($K$62-SUM($N$65:N71))=0,"0 ",$K$62-SUM($N$65:N71))) ->  | W71: =IF(#REF!="","",IF(($K$4-SUM(#REF!))=0,"0 ",$K$4-SUM(#REF!))) -> 
A72: 第 | B72: 8 | C72: 回 | E72: 月 | Q72: =IF(N72="","",SUM($N$65:N72)) ->  | V72: =IF(OR(N72="",$K$62=""),"",IF(($K$62-SUM($N$65:N72))=0,"0 ",$K$62-SUM($N$65:N72))) ->  | W72: =IF(#REF!="","",IF(($K$4-SUM(#REF!))=0,"0 ",$K$4-SUM(#REF!))) -> 
A73: 第 | B73: 9 | C73: 回 | E73: 月 | Q73: =IF(N73="","",SUM($N$65:N73)) ->  | V73: =IF(OR(N73="",$K$62=""),"",IF(($K$62-SUM($N$65:N73))=0,"0 ",$K$62-SUM($N$65:N73))) ->  | W73: =IF(#REF!="","",IF(($K$4-SUM(#REF!))=0,"0 ",$K$4-SUM(#REF!))) -> 
A74: 第 | B74: 10 | C74: 回 | E74: 月 | Q74: =IF(N74="","",SUM($N$65:N74)) ->  | V74: =IF(OR(N74="",$K$62=""),"",IF(($K$62-SUM($N$65:N74))=0,"0 ",$K$62-SUM($N$65:N74))) ->  | W74: =IF(#REF!="","",IF(($K$4-SUM(#REF!))=0,"0 ",$K$4-SUM(#REF!))) -> 
A75: 第 | B75: 11 | C75: 回 | E75: 月 | Q75: =IF(N75="","",SUM($N$65:N75)) ->  | V75: =IF(OR(N75="",$K$62=""),"",IF(($K$62-SUM($N$65:N75))=0,"0 ",$K$62-SUM($N$65:N75))) ->  | W75: =IF(#REF!="","",IF(($K$4-SUM(#REF!))=0,"0 ",$K$4-SUM(#REF!))) -> 
A76: 第 | B76: 12 | C76: 回 | E76: 月 | Q76: =IF(N76="","",SUM($N$65:N76)) ->  | V76: =IF(OR(N76="",$K$62=""),"",IF(($K$62-SUM($N$65:N76))=0,"0 ",$K$62-SUM($N$65:N76))) ->  | W76: =IF(#REF!="","",IF(($K$4-SUM(#REF!))=0,"0 ",$K$4-SUM(#REF!))) -> 
A77: 第 | B77: 13 | C77: 回 | E77: 月 | Q77: =IF(N77="","",SUM($N$65:N77)) ->  | V77: =IF(OR(N77="",$K$62=""),"",IF(($K$62-SUM($N$65:N77))=0,"0 ",$K$62-SUM($N$65:N77))) ->  | W77: =IF(#REF!="","",IF(($K$4-SUM(#REF!))=0,"0 ",$K$4-SUM(#REF!))) -> 
A78: 第 | B78: 14 | C78: 回 | E78: 月 | Q78: =IF(N78="","",SUM($N$65:N78)) ->  | V78: =IF(OR(N78="",$K$62=""),"",IF(($K$62-SUM($N$65:N78))=0,"0 ",$K$62-SUM($N$65:N78))) ->  | W78: =IF(#REF!="","",IF(($K$4-SUM(#REF!))=0,"0 ",$K$4-SUM(#REF!))) -> 
A79: 第 | B79: 15 | C79: 回 | E79: 月 | Q79: =IF(N79="","",SUM($N$65:N79)) ->  | V79: =IF(OR(N79="",$K$62=""),"",IF(($K$62-SUM($N$65:N79))=0,"0 ",$K$62-SUM($N$65:N79))) ->  | W79: =IF(#REF!="","",IF(($K$4-SUM(#REF!))=0,"0 ",$K$4-SUM(#REF!))) -> 
A80: 第 | B80: 16 | C80: 回 | E80: 月 | Q80: =IF(N80="","",SUM($N$65:N80)) ->  | V80: =IF(OR(N80="",$K$62=""),"",IF(($K$62-SUM($N$65:N80))=0,"0 ",$K$62-SUM($N$65:N80))) ->  | W80: =IF(#REF!="","",IF(($K$4-SUM(#REF!))=0,"0 ",$K$4-SUM(#REF!))) -> 
A81: 第 | B81: 17 | C81: 回 | E81: 月 | Q81: =IF(N81="","",SUM($N$65:N81)) ->  | V81: =IF(OR(N81="",$K$62=""),"",IF(($K$62-SUM($N$65:N81))=0,"0 ",$K$62-SUM($N$65:N81))) ->  | W81: =IF(#REF!="","",IF(($K$4-SUM(#REF!))=0,"0 ",$K$4-SUM(#REF!))) -> 
A82: 第 | B82: 18 | C82: 回 | E82: 月 | Q82: =IF(N82="","",SUM($N$65:N82)) ->  | V82: =IF(OR(N82="",$K$62=""),"",IF(($K$62-SUM($N$65:N82))=0,"0 ",$K$62-SUM($N$65:N82))) ->  | W82: =IF(#REF!="","",IF(($K$4-SUM(#REF!))=0,"0 ",$K$4-SUM(#REF!))) -> 
A83: 第 | B83: 19 | C83: 回 | E83: 月 | Q83: =IF(N83="","",SUM($N$65:N83)) ->  | V83: =IF(OR(N83="",$K$62=""),"",IF(($K$62-SUM($N$65:N83))=0,"0 ",$K$62-SUM($N$65:N83))) ->  | W83: =IF(#REF!="","",IF(($K$4-SUM(#REF!))=0,"0 ",$K$4-SUM(#REF!))) -> 
A84: 第 | B84: 20 | C84: 回 | E84: 月 | Q84: =IF(N84="","",SUM($N$65:N84)) ->  | V84: =IF(OR(N84="",$K$62=""),"",IF(($K$62-SUM($N$65:N84))=0,"0 ",$K$62-SUM($N$65:N84))) ->  | W84: =IF(#REF!="","",IF(($K$4-SUM(#REF!))=0,"0 ",$K$4-SUM(#REF!))) -> 
J86: 請求金額累計（税抜） | N86: =SUM(N65:P84) -> 0 | T86: 請求後残高金額（税抜） | W86: =IF(K62="","",IF((K62-N86)=0,"0 ",K62-N86)) -> 
A88: 請負工事内訳書
G89: 現場名称： | V89: 請求日 | W89: =合計請求書!$R$2 -> 00:00:00
G90: 契約工期： | O90: ～ | V90: 会社名 | W90: =合計請求書!$P$7 -> 0
G91: 契約金額(税抜)：
A93: 請 求 | F93: 請負内容 | L93: 請求金額 (税抜) | Q93: 累計金額 (税抜) | U93: 請求後残高金額 (税抜) | X93: 備考
A94: 第 | B94: 1 | C94: 回 | E94: 月 | L94: =IFERROR(ROUND(N94/K$91,3),"") ->  | Q94: =IF(N94="","",SUM($N$94:N94)) ->  | U94: =IF(OR(K91="",N94=""),"",IF(V94/$K$91=0,"",1-L94)) ->  | V94: =IF(OR(N94="",$K$91=""),"",IF(($K$91-SUM($N$94:N94))=0,"0 ",$K$91-SUM($N$94:N94))) ->  | W94: =IF(#REF!="","",IF(($K$4-SUM(#REF!))=0,"0 ",$K$4-SUM(#REF!))) -> 
A95: 第 | B95: 2 | C95: 回 | E95: 月 | Q95: =IF(N95="","",SUM($N$94:N95)) ->  | U95: =IF(OR($K$91="",N95=""),"",IF(V95/$K$91=0,"",ROUND(V95/$K$91,3))) ->  | V95: =IF(OR(N95="",$K$91=""),"",IF(($K$91-SUM($N$94:N95))=0,"0 ",$K$91-SUM($N$94:N95))) ->  | W95: =IF(#REF!="","",IF(($K$4-SUM(#REF!))=0,"0 ",$K$4-SUM(#REF!))) -> 
A96: 第 | B96: 3 | C96: 回 | E96: 月 | Q96: =IF(N96="","",SUM($N$94:N96)) ->  | V96: =IF(OR(N96="",$K$91=""),"",IF(($K$91-SUM($N$94:N96))=0,"0 ",$K$91-SUM($N$94:N96))) ->  | W96: =IF(#REF!="","",IF(($K$4-SUM(#REF!))=0,"0 ",$K$4-SUM(#REF!))) -> 
A97: 第 | B97: 4 | C97: 回 | E97: 月 | Q97: =IF(N97="","",SUM($N$94:N97)) ->  | V97: =IF(OR(N97="",$K$91=""),"",IF(($K$91-SUM($N$94:N97))=0,"0 ",$K$91-SUM($N$94:N97))) ->  | W97: =IF(#REF!="","",IF(($K$4-SUM(#REF!))=0,"0 ",$K$4-SUM(#REF!))) -> 
A98: 第 | B98: 5 | C98: 回 | E98: 月 | Q98: =IF(N98="","",SUM($N$94:N98)) ->  | V98: =IF(OR(N98="",$K$91=""),"",IF(($K$91-SUM($N$94:N98))=0,"0 ",$K$91-SUM($N$94:N98))) ->  | W98: =IF(#REF!="","",IF(($K$4-SUM(#REF!))=0,"0 ",$K$4-SUM(#REF!))) -> 
A99: 第 | B99: 6 | C99: 回 | E99: 月 | Q99: =IF(N99="","",SUM($N$94:N99)) ->  | V99: =IF(OR(N99="",$K$91=""),"",IF(($K$91-SUM($N$94:N99))=0,"0 ",$K$91-SUM($N$94:N99))) ->  | W99: =IF(#REF!="","",IF(($K$4-SUM(#REF!))=0,"0 ",$K$4-SUM(#REF!))) -> 
A100: 第 | B100: 7 | C100: 回 | E100: 月 | Q100: =IF(N100="","",SUM($N$94:N100)) ->  | V100: =IF(OR(N100="",$K$91=""),"",IF(($K$91-SUM($N$94:N100))=0,"0 ",$K$91-SUM($N$94:N100))) ->  | W100: =IF(#REF!="","",IF(($K$4-SUM(#REF!))=0,"0 ",$K$4-SUM(#REF!))) -> 
A101: 第 | B101: 8 | C101: 回 | E101: 月 | Q101: =IF(N101="","",SUM($N$94:N101)) ->  | V101: =IF(OR(N101="",$K$91=""),"",IF(($K$91-SUM($N$94:N101))=0,"0 ",$K$91-SUM($N$94:N101))) ->  | W101: =IF(#REF!="","",IF(($K$4-SUM(#REF!))=0,"0 ",$K$4-SUM(#REF!))) -> 
A102: 第 | B102: 9 | C102: 回 | E102: 月 | Q102: =IF(N102="","",SUM($N$94:N102)) ->  | V102: =IF(OR(N102="",$K$91=""),"",IF(($K$91-SUM($N$94:N102))=0,"0 ",$K$91-SUM($N$94:N102))) ->  | W102: =IF(#REF!="","",IF(($K$4-SUM(#REF!))=0,"0 ",$K$4-SUM(#REF!))) -> 
A103: 第 | B103: 10 | C103: 回 | E103: 月 | Q103: =IF(N103="","",SUM($N$94:N103)) ->  | V103: =IF(OR(N103="",$K$91=""),"",IF(($K$91-SUM($N$94:N103))=0,"0 ",$K$91-SUM($N$94:N103))) ->  | W103: =IF(#REF!="","",IF(($K$4-SUM(#REF!))=0,"0 ",$K$4-SUM(#REF!))) -> 
A104: 第 | B104: 11 | C104: 回 | E104: 月 | Q104: =IF(N104="","",SUM($N$94:N104)) ->  | V104: =IF(OR(N104="",$K$91=""),"",IF(($K$91-SUM($N$94:N104))=0,"0 ",$K$91-SUM($N$94:N104))) ->  | W104: =IF(#REF!="","",IF(($K$4-SUM(#REF!))=0,"0 ",$K$4-SUM(#REF!))) -> 
A105: 第 | B105: 12 | C105: 回 | E105: 月 | Q105: =IF(N105="","",SUM($N$94:N105)) ->  | V105: =IF(OR(N105="",$K$91=""),"",IF(($K$91-SUM($N$94:N105))=0,"0 ",$K$91-SUM($N$94:N105))) ->  | W105: =IF(#REF!="","",IF(($K$4-SUM(#REF!))=0,"0 ",$K$4-SUM(#REF!))) -> 
A106: 第 | B106: 13 | C106: 回 | E106: 月 | Q106: =IF(N106="","",SUM($N$94:N106)) ->  | V106: =IF(OR(N106="",$K$91=""),"",IF(($K$91-SUM($N$94:N106))=0,"0 ",$K$91-SUM($N$94:N106))) ->  | W106: =IF(#REF!="","",IF(($K$4-SUM(#REF!))=0,"0 ",$K$4-SUM(#REF!))) -> 
A107: 第 | B107: 14 | C107: 回 | E107: 月 | Q107: =IF(N107="","",SUM($N$94:N107)) ->  | V107: =IF(OR(N107="",$K$91=""),"",IF(($K$91-SUM($N$94:N107))=0,"0 ",$K$91-SUM($N$94:N107))) ->  | W107: =IF(#REF!="","",IF(($K$4-SUM(#REF!))=0,"0 ",$K$4-SUM(#REF!))) -> 
A108: 第 | B108: 15 | C108: 回 | E108: 月 | Q108: =IF(N108="","",SUM($N$94:N108)) ->  | V108: =IF(OR(N108="",$K$91=""),"",IF(($K$91-SUM($N$94:N108))=0,"0 ",$K$91-SUM($N$94:N108))) ->  | W108: =IF(#REF!="","",IF(($K$4-SUM(#REF!))=0,"0 ",$K$4-SUM(#REF!))) -> 
A109: 第 | B109: 16 | C109: 回 | E109: 月 | Q109: =IF(N109="","",SUM($N$94:N109)) ->  | V109: =IF(OR(N109="",$K$91=""),"",IF(($K$91-SUM($N$94:N109))=0,"0 ",$K$91-SUM($N$94:N109))) ->  | W109: =IF(#REF!="","",IF(($K$4-SUM(#REF!))=0,"0 ",$K$4-SUM(#REF!))) -> 
A110: 第 | B110: 17 | C110: 回 | E110: 月 | Q110: =IF(N110="","",SUM($N$94:N110)) ->  | V110: =IF(OR(N110="",$K$91=""),"",IF(($K$91-SUM($N$94:N110))=0,"0 ",$K$91-SUM($N$94:N110))) ->  | W110: =IF(#REF!="","",IF(($K$4-SUM(#REF!))=0,"0 ",$K$4-SUM(#REF!))) -> 
A111: 第 | B111: 18 | C111: 回 | E111: 月 | Q111: =IF(N111="","",SUM($N$94:N111)) ->  | V111: =IF(OR(N111="",$K$91=""),"",IF(($K$91-SUM($N$94:N111))=0,"0 ",$K$91-SUM($N$94:N111))) ->  | W111: =IF(#REF!="","",IF(($K$4-SUM(#REF!))=0,"0 ",$K$4-SUM(#REF!))) -> 
A112: 第 | B112: 19 | C112: 回 | E112: 月 | Q112: =IF(N112="","",SUM($N$94:N112)) ->  | V112: =IF(OR(N112="",$K$91=""),"",IF(($K$91-SUM($N$94:N112))=0,"0 ",$K$91-SUM($N$94:N112))) ->  | W112: =IF(#REF!="","",IF(($K$4-SUM(#REF!))=0,"0 ",$K$4-SUM(#REF!))) -> 
A113: 第 | B113: 20 | C113: 回 | E113: 月 | Q113: =IF(N113="","",SUM($N$94:N113)) ->  | V113: =IF(OR(N113="",$K$91=""),"",IF(($K$91-SUM($N$94:N113))=0,"0 ",$K$91-SUM($N$94:N113))) ->  | W113: =IF(#REF!="","",IF(($K$4-SUM(#REF!))=0,"0 ",$K$4-SUM(#REF!))) -> 
J115: 請求金額累計（税抜） | N115: =SUM(N94:P113) -> 0 | T115: 請求後残高金額（税抜） | W115: =IF(K91="","",IF((K91-N115)=0,"0 ",K91-N115)) -> 
A117: 請負工事内訳書
G118: 現場名称： | V118: 請求日 | W118: =合計請求書!$R$2 -> 00:00:00
G119: 契約工期： | O119: ～ | V119: 会社名 | W119: =合計請求書!$P$7 -> 0
G120: 契約金額(税抜)：
A122: 請 求 | F122: 請負内容 | L122: 請求金額 (税抜) | Q122: 累計金額 (税抜) | U122: 請求後残高金額 (税抜) | X122: 備考
A123: 第 | B123: 1 | C123: 回 | E123: 月 | L123: =IFERROR(ROUND(N123/K$120,3),"") ->  | Q123: =IF(N123="","",SUM($N$123:N123)) ->  | U123: =IF(OR(K120="",N123=""),"",IF(V123/$K$120=0,"",1-L123)) ->  | V123: =IF(OR(N123="",$K$120=""),"",IF(($K$120-SUM($N$123:N123))=0,"0 ",$K$120-SUM($N$123:N123))) ->  | W123: =IF(#REF!="","",IF(($K$4-SUM(#REF!))=0,"0 ",$K$4-SUM(#REF!))) -> 
A124: 第 | B124: 2 | C124: 回 | E124: 月 | Q124: =IF(N124="","",SUM($N$123:N124)) ->  | U124: =IF(OR($K$120="",N124=""),"",IF(V124/$K$120=0,"",ROUND(V124/$K$120,3))) ->  | V124: =IF(OR(N124="",$K$120=""),"",IF(($K$120-SUM($N$123:N124))=0,"0 ",$K$120-SUM($N$123:N124))) ->  | W124: =IF(#REF!="","",IF(($K$4-SUM(#REF!))=0,"0 ",$K$4-SUM(#REF!))) -> 
A125: 第 | B125: 3 | C125: 回 | E125: 月 | Q125: =IF(N125="","",SUM($N$123:N125)) ->  | V125: =IF(OR(N125="",$K$120=""),"",IF(($K$120-SUM($N$123:N125))=0,"0 ",$K$120-SUM($N$123:N125))) ->  | W125: =IF(#REF!="","",IF(($K$4-SUM(#REF!))=0,"0 ",$K$4-SUM(#REF!))) -> 
A126: 第 | B126: 4 | C126: 回 | E126: 月 | Q126: =IF(N126="","",SUM($N$123:N126)) ->  | V126: =IF(OR(N126="",$K$120=""),"",IF(($K$120-SUM($N$123:N126))=0,"0 ",$K$120-SUM($N$123:N126))) ->  | W126: =IF(#REF!="","",IF(($K$4-SUM(#REF!))=0,"0 ",$K$4-SUM(#REF!))) -> 
A127: 第 | B127: 5 | C127: 回 | E127: 月 | Q127: =IF(N127="","",SUM($N$123:N127)) ->  | V127: =IF(OR(N127="",$K$120=""),"",IF(($K$120-SUM($N$123:N127))=0,"0 ",$K$120-SUM($N$123:N127))) ->  | W127: =IF(#REF!="","",IF(($K$4-SUM(#REF!))=0,"0 ",$K$4-SUM(#REF!))) -> 
A128: 第 | B128: 6 | C128: 回 | E128: 月 | Q128: =IF(N128="","",SUM($N$123:N128)) ->  | V128: =IF(OR(N128="",$K$120=""),"",IF(($K$120-SUM($N$123:N128))=0,"0 ",$K$120-SUM($N$123:N128))) ->  | W128: =IF(#REF!="","",IF(($K$4-SUM(#REF!))=0,"0 ",$K$4-SUM(#REF!))) -> 
A129: 第 | B129: 7 | C129: 回 | E129: 月 | Q129: =IF(N129="","",SUM($N$123:N129)) ->  | V129: =IF(OR(N129="",$K$120=""),"",IF(($K$120-SUM($N$123:N129))=0,"0 ",$K$120-SUM($N$123:N129))) ->  | W129: =IF(#REF!="","",IF(($K$4-SUM(#REF!))=0,"0 ",$K$4-SUM(#REF!))) -> 
A130: 第 | B130: 8 | C130: 回 | E130: 月 | Q130: =IF(N130="","",SUM($N$123:N130)) ->  | V130: =IF(OR(N130="",$K$120=""),"",IF(($K$120-SUM($N$123:N130))=0,"0 ",$K$120-SUM($N$123:N130))) ->  | W130: =IF(#REF!="","",IF(($K$4-SUM(#REF!))=0,"0 ",$K$4-SUM(#REF!))) -> 
A131: 第 | B131: 9 | C131: 回 | E131: 月 | Q131: =IF(N131="","",SUM($N$123:N131)) ->  | V131: =IF(OR(N131="",$K$120=""),"",IF(($K$120-SUM($N$123:N131))=0,"0 ",$K$120-SUM($N$123:N131))) ->  | W131: =IF(#REF!="","",IF(($K$4-SUM(#REF!))=0,"0 ",$K$4-SUM(#REF!))) -> 
A132: 第 | B132: 10 | C132: 回 | E132: 月 | Q132: =IF(N132="","",SUM($N$123:N132)) ->  | V132: =IF(OR(N132="",$K$120=""),"",IF(($K$120-SUM($N$123:N132))=0,"0 ",$K$120-SUM($N$123:N132))) ->  | W132: =IF(#REF!="","",IF(($K$4-SUM(#REF!))=0,"0 ",$K$4-SUM(#REF!))) -> 
A133: 第 | B133: 11 | C133: 回 | E133: 月 | Q133: =IF(N133="","",SUM($N$123:N133)) ->  | V133: =IF(OR(N133="",$K$120=""),"",IF(($K$120-SUM($N$123:N133))=0,"0 ",$K$120-SUM($N$123:N133))) ->  | W133: =IF(#REF!="","",IF(($K$4-SUM(#REF!))=0,"0 ",$K$4-SUM(#REF!))) -> 
A134: 第 | B134: 12 | C134: 回 | E134: 月 | Q134: =IF(N134="","",SUM($N$123:N134)) ->  | V134: =IF(OR(N134="",$K$120=""),"",IF(($K$120-SUM($N$123:N134))=0,"0 ",$K$120-SUM($N$123:N134))) ->  | W134: =IF(#REF!="","",IF(($K$4-SUM(#REF!))=0,"0 ",$K$4-SUM(#REF!))) -> 
A135: 第 | B135: 13 | C135: 回 | E135: 月 | Q135: =IF(N135="","",SUM($N$123:N135)) ->  | V135: =IF(OR(N135="",$K$120=""),"",IF(($K$120-SUM($N$123:N135))=0,"0 ",$K$120-SUM($N$123:N135))) ->  | W135: =IF(#REF!="","",IF(($K$4-SUM(#REF!))=0,"0 ",$K$4-SUM(#REF!))) -> 
A136: 第 | B136: 14 | C136: 回 | E136: 月 | Q136: =IF(N136="","",SUM($N$123:N136)) ->  | V136: =IF(OR(N136="",$K$120=""),"",IF(($K$120-SUM($N$123:N136))=0,"0 ",$K$120-SUM($N$123:N136))) ->  | W136: =IF(#REF!="","",IF(($K$4-SUM(#REF!))=0,"0 ",$K$4-SUM(#REF!))) -> 
A137: 第 | B137: 15 | C137: 回 | E137: 月 | Q137: =IF(N137="","",SUM($N$123:N137)) ->  | V137: =IF(OR(N137="",$K$120=""),"",IF(($K$120-SUM($N$123:N137))=0,"0 ",$K$120-SUM($N$123:N137))) ->  | W137: =IF(#REF!="","",IF(($K$4-SUM(#REF!))=0,"0 ",$K$4-SUM(#REF!))) -> 
A138: 第 | B138: 16 | C138: 回 | E138: 月 | Q138: =IF(N138="","",SUM($N$123:N138)) ->  | V138: =IF(OR(N138="",$K$120=""),"",IF(($K$120-SUM($N$123:N138))=0,"0 ",$K$120-SUM($N$123:N138))) ->  | W138: =IF(#REF!="","",IF(($K$4-SUM(#REF!))=0,"0 ",$K$4-SUM(#REF!))) -> 
A139: 第 | B139: 17 | C139: 回 | E139: 月 | Q139: =IF(N139="","",SUM($N$123:N139)) ->  | V139: =IF(OR(N139="",$K$120=""),"",IF(($K$120-SUM($N$123:N139))=0,"0 ",$K$120-SUM($N$123:N139))) ->  | W139: =IF(#REF!="","",IF(($K$4-SUM(#REF!))=0,"0 ",$K$4-SUM(#REF!))) -> 
A140: 第 | B140: 18 | C140: 回 | E140: 月 | Q140: =IF(N140="","",SUM($N$123:N140)) ->  | V140: =IF(OR(N140="",$K$120=""),"",IF(($K$120-SUM($N$123:N140))=0,"0 ",$K$120-SUM($N$123:N140))) ->  | W140: =IF(#REF!="","",IF(($K$4-SUM(#REF!))=0,"0 ",$K$4-SUM(#REF!))) -> 
A141: 第 | B141: 19 | C141: 回 | E141: 月 | Q141: =IF(N141="","",SUM($N$123:N141)) ->  | V141: =IF(OR(N141="",$K$120=""),"",IF(($K$120-SUM($N$123:N141))=0,"0 ",$K$120-SUM($N$123:N141))) ->  | W141: =IF(#REF!="","",IF(($K$4-SUM(#REF!))=0,"0 ",$K$4-SUM(#REF!))) -> 
A142: 第 | B142: 20 | C142: 回 | E142: 月 | Q142: =IF(N142="","",SUM($N$123:N142)) ->  | V142: =IF(OR(N142="",$K$120=""),"",IF(($K$120-SUM($N$123:N142))=0,"0 ",$K$120-SUM($N$123:N142))) ->  | W142: =IF(#REF!="","",IF(($K$4-SUM(#REF!))=0,"0 ",$K$4-SUM(#REF!))) -> 
J144: 請求金額累計（税抜） | N144: =SUM(N123:P142) -> 0 | T144: 請求後残高金額（税抜） | W144: =IF(K120="","",IF((K120-N144)=0,"0 ",K120-N144)) -> 

Sheet 請負内訳書（保留金あり）
A1: 請負工事内訳書
G2: 現場名称： | V2: 請求日 | W2: =合計請求書!$R$2 -> 00:00:00
G3: 契約工期： | O3: ～ | V3: 会社名 | W3: =合計請求書!$P$7 -> 0
G4: 契約金額(税抜)：
A6: 請 求 | F6: 請負内容 | L6: 請求金額 (税抜) | Q6: 累計金額 (税抜) | U6: 請求後残高金額 (税抜) | X6: 保留金（10％）
A7: 第 | B7: 1 | C7: 回 | E7: 月 | L7: =IFERROR(ROUND(N7/K$4,3),"") ->  | Q7: =IF(N7="","",SUM($N$7:N7)) ->  | U7: =IF(OR(K4="",N7=""),"",IF(V7/$K$4=0,"",1-L7)) ->  | V7: =IF(OR(N7="",$K$4=""),"",IF(($K$4-SUM($N$7:N7))=0,"0 ",$K$4-SUM($N$7:N7))) ->  | W7: =IF(#REF!="","",IF(($K$4-SUM(#REF!))=0,"0 ",$K$4-SUM(#REF!))) ->  | Y7: =IF(X7="保留金",N7*0.1,"") -> 
A8: 第 | B8: 2 | C8: 回 | E8: 月 | Q8: =IF(N8="","",SUM($N$7:N8)) ->  | U8: =IF(OR($K$4="",N8=""),"",IF(V8/$K$4=0,"",ROUNDDOWN(V8/$K$4,3))) ->  | V8: =IF(OR(N8="",$K$4=""),"",IF(($K$4-SUM($N$7:N8))=0,"0 ",$K$4-SUM($N$7:N8))) ->  | W8: =IF(#REF!="","",IF(($K$4-SUM(#REF!))=0,"0 ",$K$4-SUM(#REF!))) ->  | Y8: =IF(X8="保留金",N8*0.1,IF(X8="保留金解除",SUM($Y$7:Y7),"")) -> 
A9: 第 | B9: 3 | C9: 回 | E9: 月 | Q9: =IF(N9="","",SUM($N$7:N9)) ->  | U9: =IF(OR($K$4="",N9=""),"",IF(V9/$K$4=0,"",ROUNDDOWN(V9/$K$4,3))) ->  | V9: =IF(OR(N9="",$K$4=""),"",IF(($K$4-SUM($N$7:N9))=0,"0 ",$K$4-SUM($N$7:N9))) ->  | W9: =IF(#REF!="","",IF(($K$4-SUM(#REF!))=0,"0 ",$K$4-SUM(#REF!))) ->  | Y9: =IF(X9="保留金",N9*0.1,IF(X9="保留金解除",SUM($Y$7:Y8),"")) -> 
A10: 第 | B10: 4 | C10: 回 | E10: 月 | Q10: =IF(N10="","",SUM($N$7:N10)) ->  | V10: =IF(OR(N10="",$K$4=""),"",IF(($K$4-SUM($N$7:N10))=0,"0 ",$K$4-SUM($N$7:N10))) ->  | W10: =IF(#REF!="","",IF(($K$4-SUM(#REF!))=0,"0 ",$K$4-SUM(#REF!))) ->  | Y10: =IF(X10="保留金",N10*0.1,IF(X10="保留金解除",SUM($Y$7:Y9),"")) -> 
A11: 第 | B11: 5 | C11: 回 | E11: 月 | Q11: =IF(N11="","",SUM($N$7:N11)) ->  | V11: =IF(OR(N11="",$K$4=""),"",IF(($K$4-SUM($N$7:N11))=0,"0 ",$K$4-SUM($N$7:N11))) ->  | W11: =IF(#REF!="","",IF(($K$4-SUM(#REF!))=0,"0 ",$K$4-SUM(#REF!))) ->  | Y11: =IF(X11="保留金",N11*0.1,IF(X11="保留金解除",SUM($Y$7:Y10),"")) -> 
A12: 第 | B12: 6 | C12: 回 | E12: 月 | Q12: =IF(N12="","",SUM($N$7:N12)) ->  | V12: =IF(OR(N12="",$K$4=""),"",IF(($K$4-SUM($N$7:N12))=0,"0 ",$K$4-SUM($N$7:N12))) ->  | W12: =IF(#REF!="","",IF(($K$4-SUM(#REF!))=0,"0 ",$K$4-SUM(#REF!))) ->  | Y12: =IF(X12="保留金",N12*0.1,IF(X12="保留金解除",SUM($Y$7:Y11),"")) -> 
A13: 第 | B13: 7 | C13: 回 | E13: 月 | Q13: =IF(N13="","",SUM($N$7:N13)) ->  | V13: =IF(OR(N13="",$K$4=""),"",IF(($K$4-SUM($N$7:N13))=0,"0 ",$K$4-SUM($N$7:N13))) ->  | W13: =IF(#REF!="","",IF(($K$4-SUM(#REF!))=0,"0 ",$K$4-SUM(#REF!))) ->  | Y13: =IF(X13="保留金",N13*0.1,IF(X13="保留金解除",SUM($Y$7:Y12),"")) -> 
A14: 第 | B14: 8 | C14: 回 | E14: 月 | Q14: =IF(N14="","",SUM($N$7:N14)) ->  | V14: =IF(OR(N14="",$K$4=""),"",IF(($K$4-SUM($N$7:N14))=0,"0 ",$K$4-SUM($N$7:N14))) ->  | W14: =IF(#REF!="","",IF(($K$4-SUM(#REF!))=0,"0 ",$K$4-SUM(#REF!))) ->  | Y14: =IF(X14="保留金",N14*0.1,IF(X14="保留金解除",SUM($Y$7:Y13),"")) -> 
A15: 第 | B15: 9 | C15: 回 | E15: 月 | Q15: =IF(N15="","",SUM($N$7:N15)) ->  | V15: =IF(OR(N15="",$K$4=""),"",IF(($K$4-SUM($N$7:N15))=0,"0 ",$K$4-SUM($N$7:N15))) ->  | W15: =IF(#REF!="","",IF(($K$4-SUM(#REF!))=0,"0 ",$K$4-SUM(#REF!))) ->  | Y15: =IF(X15="保留金",N15*0.1,IF(X15="保留金解除",SUM($Y$7:Y14),"")) -> 
A16: 第 | B16: 10 | C16: 回 | E16: 月 | Q16: =IF(N16="","",SUM($N$7:N16)) ->  | V16: =IF(OR(N16="",$K$4=""),"",IF(($K$4-SUM($N$7:N16))=0,"0 ",$K$4-SUM($N$7:N16))) ->  | W16: =IF(#REF!="","",IF(($K$4-SUM(#REF!))=0,"0 ",$K$4-SUM(#REF!))) ->  | Y16: =IF(X16="保留金",N16*0.1,IF(X16="保留金解除",SUM($Y$7:Y15),"")) -> 
A17: 第 | B17: 11 | C17: 回 | E17: 月 | Q17: =IF(N17="","",SUM($N$7:N17)) ->  | V17: =IF(OR(N17="",$K$4=""),"",IF(($K$4-SUM($N$7:N17))=0,"0 ",$K$4-SUM($N$7:N17))) ->  | W17: =IF(#REF!="","",IF(($K$4-SUM(#REF!))=0,"0 ",$K$4-SUM(#REF!))) ->  | Y17: =IF(X17="保留金",N17*0.1,IF(X17="保留金解除",SUM($Y$7:Y16),"")) -> 
A18: 第 | B18: 12 | C18: 回 | E18: 月 | Q18: =IF(N18="","",SUM($N$7:N18)) ->  | V18: =IF(OR(N18="",$K$4=""),"",IF(($K$4-SUM($N$7:N18))=0,"0 ",$K$4-SUM($N$7:N18))) ->  | W18: =IF(#REF!="","",IF(($K$4-SUM(#REF!))=0,"0 ",$K$4-SUM(#REF!))) ->  | Y18: =IF(X18="保留金",N18*0.1,IF(X18="保留金解除",SUM($Y$7:Y17),"")) -> 
A19: 第 | B19: 13 | C19: 回 | E19: 月 | Q19: =IF(N19="","",SUM($N$7:N19)) ->  | V19: =IF(OR(N19="",$K$4=""),"",IF(($K$4-SUM($N$7:N19))=0,"0 ",$K$4-SUM($N$7:N19))) ->  | W19: =IF(#REF!="","",IF(($K$4-SUM(#REF!))=0,"0 ",$K$4-SUM(#REF!))) ->  | Y19: =IF(X19="保留金",N19*0.1,IF(X19="保留金解除",SUM($Y$7:Y18),"")) -> 
A20: 第 | B20: 14 | C20: 回 | E20: 月 | Q20: =IF(N20="","",SUM($N$7:N20)) ->  | V20: =IF(OR(N20="",$K$4=""),"",IF(($K$4-SUM($N$7:N20))=0,"0 ",$K$4-SUM($N$7:N20))) ->  | W20: =IF(#REF!="","",IF(($K$4-SUM(#REF!))=0,"0 ",$K$4-SUM(#REF!))) ->  | Y20: =IF(X20="保留金",N20*0.1,IF(X20="保留金解除",SUM($Y$7:Y19),"")) -> 
A21: 第 | B21: 15 | C21: 回 | E21: 月 | Q21: =IF(N21="","",SUM($N$7:N21)) ->  | V21: =IF(OR(N21="",$K$4=""),"",IF(($K$4-SUM($N$7:N21))=0,"0 ",$K$4-SUM($N$7:N21))) ->  | W21: =IF(#REF!="","",IF(($K$4-SUM(#REF!))=0,"0 ",$K$4-SUM(#REF!))) ->  | Y21: =IF(X21="保留金",N21*0.1,IF(X21="保留金解除",SUM($Y$7:Y20),"")) -> 
A22: 第 | B22: 16 | C22: 回 | E22: 月 | Q22: =IF(N22="","",SUM($N$7:N22)) ->  | V22: =IF(OR(N22="",$K$4=""),"",IF(($K$4-SUM($N$7:N22))=0,"0 ",$K$4-SUM($N$7:N22))) ->  | W22: =IF(#REF!="","",IF(($K$4-SUM(#REF!))=0,"0 ",$K$4-SUM(#REF!))) ->  | Y22: =IF(X22="保留金",N22*0.1,IF(X22="保留金解除",SUM($Y$7:Y21),"")) -> 
A23: 第 | B23: 17 | C23: 回 | E23: 月 | Q23: =IF(N23="","",SUM($N$7:N23)) ->  | V23: =IF(OR(N23="",$K$4=""),"",IF(($K$4-SUM($N$7:N23))=0,"0 ",$K$4-SUM($N$7:N23))) ->  | W23: =IF(#REF!="","",IF(($K$4-SUM(#REF!))=0,"0 ",$K$4-SUM(#REF!))) ->  | Y23: =IF(X23="保留金",N23*0.1,IF(X23="保留金解除",SUM($Y$7:Y22),"")) -> 
A24: 第 | B24: 18 | C24: 回 | E24: 月 | Q24: =IF(N24="","",SUM($N$7:N24)) ->  | V24: =IF(OR(N24="",$K$4=""),"",IF(($K$4-SUM($N$7:N24))=0,"0 ",$K$4-SUM($N$7:N24))) ->  | W24: =IF(#REF!="","",IF(($K$4-SUM(#REF!))=0,"0 ",$K$4-SUM(#REF!))) ->  | Y24: =IF(X24="保留金",N24*0.1,IF(X24="保留金解除",SUM($Y$7:Y23),"")) -> 
A25: 第 | B25: 19 | C25: 回 | E25: 月 | Q25: =IF(N25="","",SUM($N$7:N25)) ->  | V25: =IF(OR(N25="",$K$4=""),"",IF(($K$4-SUM($N$7:N25))=0,"0 ",$K$4-SUM($N$7:N25))) ->  | W25: =IF(#REF!="","",IF(($K$4-SUM(#REF!))=0,"0 ",$K$4-SUM(#REF!))) ->  | Y25: =IF(X25="保留金",N25*0.1,IF(X25="保留金解除",SUM($Y$7:Y24),"")) -> 
A26: 第 | B26: 20 | C26: 回 | E26: 月 | Q26: =IF(N26="","",SUM($N$7:N26)) ->  | V26: =IF(OR(N26="",$K$4=""),"",IF(($K$4-SUM($N$7:N26))=0,"0 ",$K$4-SUM($N$7:N26))) ->  | W26: =IF(#REF!="","",IF(($K$4-SUM(#REF!))=0,"0 ",$K$4-SUM(#REF!))) ->  | Y26: =IF(X26="保留金",N26*0.1,IF(X26="保留金解除",SUM($Y$7:Y25),"")) -> 
J28: 請求金額累計（税抜） | N28: =SUM(N7:P26) -> 0 | T28: 請求後残高金額（税抜） | W28: =IF(K4="","",IF((K4-N28)=0,"0 ",K4-N28)) -> 
A30: 請負工事内訳書
G31: 現場名称： | V31: 請求日 | W31: =合計請求書!$R$2 -> 00:00:00
G32: 契約工期： | O32: ～ | V32: 会社名 | W32: =合計請求書!$P$7 -> 0
G33: 契約金額(税抜)：
A35: 請 求 | F35: 請負内容 | L35: 請求金額 (税抜) | Q35: 累計金額 (税抜) | U35: 請求後残高金額 (税抜) | X35: 保留金（10％）
A36: 第 | B36: 1 | C36: 回 | E36: 月 | L36: =IFERROR(ROUND(N36/K$33,3),"") ->  | Q36: =IF(N36="","",SUM($N$36:N36)) ->  | U36: =IF(OR(K33="",N36=""),"",IF(V36/$K$33=0,"",1-L36)) ->  | V36: =IF(OR(N36="",$K$33=""),"",IF(($K$33-SUM($N$36:N36))=0,"0 ",$K$33-SUM($N$36:N36))) ->  | W36: =IF(#REF!="","",IF(($K$4-SUM(#REF!))=0,"0 ",$K$4-SUM(#REF!))) ->  | Y36: =IF(X36="保留金",N36*0.1,"") -> 
A37: 第 | B37: 2 | C37: 回 | E37: 月 | Q37: =IF(N37="","",SUM($N$36:N37)) ->  | U37: =IF(OR($K$33="",N37=""),"",IF(V37/$K$33=0,"",ROUNDDOWN(V37/$K$33,3))) ->  | V37: =IF(OR(N37="",$K$33=""),"",IF(($K$33-SUM($N$36:N37))=0,"0 ",$K$33-SUM($N$36:N37))) ->  | W37: =IF(#REF!="","",IF(($K$4-SUM(#REF!))=0,"0 ",$K$4-SUM(#REF!))) ->  | Y37: =IF(X37="保留金",N37*0.1,IF(X37="保留金解除",SUM($Y$36:Y36),"")) -> 
A38: 第 | B38: 3 | C38: 回 | E38: 月 | Q38: =IF(N38="","",SUM($N$36:N38)) ->  | U38: =IF(OR($K$33="",N38=""),"",IF(V38/$K$33=0,"",ROUNDDOWN(V38/$K$33,3))) ->  | V38: =IF(OR(N38="",$K$33=""),"",IF(($K$33-SUM($N$36:N38))=0,"0 ",$K$33-SUM($N$36:N38))) ->  | W38: =IF(#REF!="","",IF(($K$4-SUM(#REF!))=0,"0 ",$K$4-SUM(#REF!))) ->  | Y38: =IF(X38="保留金",N38*0.1,IF(X38="保留金解除",SUM($Y$36:Y37),"")) -> 
A39: 第 | B39: 4 | C39: 回 | E39: 月 | Q39: =IF(N39="","",SUM($N$36:N39)) ->  | V39: =IF(OR(N39="",$K$33=""),"",IF(($K$33-SUM($N$36:N39))=0,"0 ",$K$33-SUM($N$36:N39))) ->  | W39: =IF(#REF!="","",IF(($K$4-SUM(#REF!))=0,"0 ",$K$4-SUM(#REF!))) ->  | Y39: =IF(X39="保留金",N39*0.1,IF(X39="保留金解除",SUM($Y$36:Y38),"")) -> 
A40: 第 | B40: 5 | C40: 回 | E40: 月 | Q40: =IF(N40="","",SUM($N$36:N40)) ->  | V40: =IF(OR(N40="",$K$33=""),"",IF(($K$33-SUM($N$36:N40))=0,"0 ",$K$33-SUM($N$36:N40))) ->  | W40: =IF(#REF!="","",IF(($K$4-SUM(#REF!))=0,"0 ",$K$4-SUM(#REF!))) ->  | Y40: =IF(X40="保留金",N40*0.1,IF(X40="保留金解除",SUM($Y$36:Y39),"")) -> 
A41: 第 | B41: 6 | C41: 回 | E41: 月 | Q41: =IF(N41="","",SUM($N$36:N41)) ->  | V41: =IF(OR(N41="",$K$33=""),"",IF(($K$33-SUM($N$36:N41))=0,"0 ",$K$33-SUM($N$36:N41))) ->  | W41: =IF(#REF!="","",IF(($K$4-SUM(#REF!))=0,"0 ",$K$4-SUM(#REF!))) ->  | Y41: =IF(X41="保留金",N41*0.1,IF(X41="保留金解除",SUM($Y$36:Y40),"")) -> 
A42: 第 | B42: 7 | C42: 回 | E42: 月 | Q42: =IF(N42="","",SUM($N$36:N42)) ->  | V42: =IF(OR(N42="",$K$33=""),"",IF(($K$33-SUM($N$36:N42))=0,"0 ",$K$33-SUM($N$36:N42))) ->  | W42: =IF(#REF!="","",IF(($K$4-SUM(#REF!))=0,"0 ",$K$4-SUM(#REF!))) ->  | Y42: =IF(X42="保留金",N42*0.1,IF(X42="保留金解除",SUM($Y$36:Y41),"")) -> 
A43: 第 | B43: 8 | C43: 回 | E43: 月 | Q43: =IF(N43="","",SUM($N$36:N43)) ->  | V43: =IF(OR(N43="",$K$33=""),"",IF(($K$33-SUM($N$36:N43))=0,"0 ",$K$33-SUM($N$36:N43))) ->  | W43: =IF(#REF!="","",IF(($K$4-SUM(#REF!))=0,"0 ",$K$4-SUM(#REF!))) ->  | Y43: =IF(X43="保留金",N43*0.1,IF(X43="保留金解除",SUM($Y$36:Y42),"")) -> 
A44: 第 | B44: 9 | C44: 回 | E44: 月 | Q44: =IF(N44="","",SUM($N$36:N44)) ->  | V44: =IF(OR(N44="",$K$33=""),"",IF(($K$33-SUM($N$36:N44))=0,"0 ",$K$33-SUM($N$36:N44))) ->  | W44: =IF(#REF!="","",IF(($K$4-SUM(#REF!))=0,"0 ",$K$4-SUM(#REF!))) ->  | Y44: =IF(X44="保留金",N44*0.1,IF(X44="保留金解除",SUM($Y$36:Y43),"")) -> 
A45: 第 | B45: 10 | C45: 回 | E45: 月 | Q45: =IF(N45="","",SUM($N$36:N45)) ->  | V45: =IF(OR(N45="",$K$33=""),"",IF(($K$33-SUM($N$36:N45))=0,"0 ",$K$33-SUM($N$36:N45))) ->  | W45: =IF(#REF!="","",IF(($K$4-SUM(#REF!))=0,"0 ",$K$4-SUM(#REF!))) ->  | Y45: =IF(X45="保留金",N45*0.1,IF(X45="保留金解除",SUM($Y$36:Y44),"")) -> 
A46: 第 | B46: 11 | C46: 回 | E46: 月 | Q46: =IF(N46="","",SUM($N$36:N46)) ->  | V46: =IF(OR(N46="",$K$33=""),"",IF(($K$33-SUM($N$36:N46))=0,"0 ",$K$33-SUM($N$36:N46))) ->  | W46: =IF(#REF!="","",IF(($K$4-SUM(#REF!))=0,"0 ",$K$4-SUM(#REF!))) ->  | Y46: =IF(X46="保留金",N46*0.1,IF(X46="保留金解除",SUM($Y$36:Y45),"")) -> 
A47: 第 | B47: 12 | C47: 回 | E47: 月 | Q47: =IF(N47="","",SUM($N$36:N47)) ->  | V47: =IF(OR(N47="",$K$33=""),"",IF(($K$33-SUM($N$36:N47))=0,"0 ",$K$33-SUM($N$36:N47))) ->  | W47: =IF(#REF!="","",IF(($K$4-SUM(#REF!))=0,"0 ",$K$4-SUM(#REF!))) ->  | Y47: =IF(X47="保留金",N47*0.1,IF(X47="保留金解除",SUM($Y$36:Y46),"")) -> 
A48: 第 | B48: 13 | C48: 回 | E48: 月 | Q48: =IF(N48="","",SUM($N$36:N48)) ->  | V48: =IF(OR(N48="",$K$33=""),"",IF(($K$33-SUM($N$36:N48))=0,"0 ",$K$33-SUM($N$36:N48))) ->  | W48: =IF(#REF!="","",IF(($K$4-SUM(#REF!))=0,"0 ",$K$4-SUM(#REF!))) ->  | Y48: =IF(X48="保留金",N48*0.1,IF(X48="保留金解除",SUM($Y$36:Y47),"")) -> 
A49: 第 | B49: 14 | C49: 回 | E49: 月 | Q49: =IF(N49="","",SUM($N$36:N49)) ->  | V49: =IF(OR(N49="",$K$33=""),"",IF(($K$33-SUM($N$36:N49))=0,"0 ",$K$33-SUM($N$36:N49))) ->  | W49: =IF(#REF!="","",IF(($K$4-SUM(#REF!))=0,"0 ",$K$4-SUM(#REF!))) ->  | Y49: =IF(X49="保留金",N49*0.1,IF(X49="保留金解除",SUM($Y$36:Y48),"")) -> 
A50: 第 | B50: 15 | C50: 回 | E50: 月 | Q50: =IF(N50="","",SUM($N$36:N50)) ->  | V50: =IF(OR(N50="",$K$33=""),"",IF(($K$33-SUM($N$36:N50))=0,"0 ",$K$33-SUM($N$36:N50))) ->  | W50: =IF(#REF!="","",IF(($K$4-SUM(#REF!))=0,"0 ",$K$4-SUM(#REF!))) ->  | Y50: =IF(X50="保留金",N50*0.1,IF(X50="保留金解除",SUM($Y$36:Y49),"")) -> 
A51: 第 | B51: 16 | C51: 回 | E51: 月 | Q51: =IF(N51="","",SUM($N$36:N51)) ->  | V51: =IF(OR(N51="",$K$33=""),"",IF(($K$33-SUM($N$36:N51))=0,"0 ",$K$33-SUM($N$36:N51))) ->  | W51: =IF(#REF!="","",IF(($K$4-SUM(#REF!))=0,"0 ",$K$4-SUM(#REF!))) ->  | Y51: =IF(X51="保留金",N51*0.1,IF(X51="保留金解除",SUM($Y$36:Y50),"")) -> 
A52: 第 | B52: 17 | C52: 回 | E52: 月 | Q52: =IF(N52="","",SUM($N$36:N52)) ->  | V52: =IF(OR(N52="",$K$33=""),"",IF(($K$33-SUM($N$36:N52))=0,"0 ",$K$33-SUM($N$36:N52))) ->  | W52: =IF(#REF!="","",IF(($K$4-SUM(#REF!))=0,"0 ",$K$4-SUM(#REF!))) ->  | Y52: =IF(X52="保留金",N52*0.1,IF(X52="保留金解除",SUM($Y$36:Y51),"")) -> 
A53: 第 | B53: 18 | C53: 回 | E53: 月 | Q53: =IF(N53="","",SUM($N$36:N53)) ->  | V53: =IF(OR(N53="",$K$33=""),"",IF(($K$33-SUM($N$36:N53))=0,"0 ",$K$33-SUM($N$36:N53))) ->  | W53: =IF(#REF!="","",IF(($K$4-SUM(#REF!))=0,"0 ",$K$4-SUM(#REF!))) ->  | Y53: =IF(X53="保留金",N53*0.1,IF(X53="保留金解除",SUM($Y$36:Y52),"")) -> 
A54: 第 | B54: 19 | C54: 回 | E54: 月 | Q54: =IF(N54="","",SUM($N$36:N54)) ->  | V54: =IF(OR(N54="",$K$33=""),"",IF(($K$33-SUM($N$36:N54))=0,"0 ",$K$33-SUM($N$36:N54))) ->  | W54: =IF(#REF!="","",IF(($K$4-SUM(#REF!))=0,"0 ",$K$4-SUM(#REF!))) ->  | Y54: =IF(X54="保留金",N54*0.1,IF(X54="保留金解除",SUM($Y$36:Y53),"")) -> 
A55: 第 | B55: 20 | C55: 回 | E55: 月 | Q55: =IF(N55="","",SUM($N$36:N55)) ->  | V55: =IF(OR(N55="",$K$33=""),"",IF(($K$33-SUM($N$36:N55))=0,"0 ",$K$33-SUM($N$36:N55))) ->  | W55: =IF(#REF!="","",IF(($K$4-SUM(#REF!))=0,"0 ",$K$4-SUM(#REF!))) ->  | X55: 保留金解除 | Y55: =IF(X55="保留金",N55*0.1,IF(X55="保留金解除",SUM($Y$36:Y54),"")) -> 0
J57: 請求金額累計（税抜） | N57: =SUM(N36:P55) -> 0 | T57: 請求後残高金額（税抜） | W57: =IF(K33="","",IF((K33-N57)=0,"0 ",K33-N57)) -> 
A59: 請負工事内訳書
G60: 現場名称： | V60: 請求日 | W60: =合計請求書!$R$2 -> 00:00:00
G61: 契約工期： | O61: ～ | V61: 会社名 | W61: =合計請求書!$P$7 -> 0
G62: 契約金額(税抜)：
A64: 請 求 | F64: 請負内容 | L64: 請求金額 (税抜) | Q64: 累計金額 (税抜) | U64: 請求後残高金額 (税抜) | X64: 保留金（10％）
A65: 第 | B65: 1 | C65: 回 | E65: 月 | L65: =IFERROR(ROUND(N65/K$62,3),"") ->  | Q65: =IF(N65="","",SUM($N$65:N65)) ->  | U65: =IF(OR(K62="",N65=""),"",IF(V65/$K$62=0,"",1-L65)) ->  | V65: =IF(OR(N65="",$K$62=""),"",IF(($K$62-SUM($N$65:N65))=0,"0 ",$K$62-SUM($N$65:N65))) ->  | W65: =IF(#REF!="","",IF(($K$4-SUM(#REF!))=0,"0 ",$K$4-SUM(#REF!))) ->  | Y65: =IF(X65="保留金",N65*0.1,"") -> 
A66: 第 | B66: 2 | C66: 回 | E66: 月 | Q66: =IF(N66="","",SUM($N$65:N66)) ->  | U66: =IF(OR($K$62="",N66=""),"",IF(V66/$K$62=0,"",ROUNDDOWN(V66/$K$62,3))) ->  | V66: =IF(OR(N66="",$K$62=""),"",IF(($K$62-SUM($N$65:N66))=0,"0 ",$K$62-SUM($N$65:N66))) ->  | W66: =IF(#REF!="","",IF(($K$4-SUM(#REF!))=0,"0 ",$K$4-SUM(#REF!))) ->  | Y66: =IF(X66="保留金",N66*0.1,IF(X66="保留金解除",SUM($Y$65:Y65),"")) -> 
A67: 第 | B67: 3 | C67: 回 | E67: 月 | Q67: =IF(N67="","",SUM($N$65:N67)) ->  | U67: =IF(OR($K$62="",N67=""),"",IF(V67/$K$62=0,"",ROUNDDOWN(V67/$K$62,3))) ->  | V67: =IF(OR(N67="",$K$62=""),"",IF(($K$62-SUM($N$65:N67))=0,"0 ",$K$62-SUM($N$65:N67))) ->  | W67: =IF(#REF!="","",IF(($K$4-SUM(#REF!))=0,"0 ",$K$4-SUM(#REF!))) ->  | Y67: =IF(X67="保留金",N67*0.1,IF(X67="保留金解除",SUM($Y$65:Y66),"")) -> 
A68: 第 | B68: 4 | C68: 回 | E68: 月 | Q68: =IF(N68="","",SUM($N$65:N68)) ->  | V68: =IF(OR(N68="",$K$62=""),"",IF(($K$62-SUM($N$65:N68))=0,"0 ",$K$62-SUM($N$65:N68))) ->  | W68: =IF(#REF!="","",IF(($K$4-SUM(#REF!))=0,"0 ",$K$4-SUM(#REF!))) ->  | Y68: =IF(X68="保留金",N68*0.1,IF(X68="保留金解除",SUM($Y$65:Y67),"")) -> 
A69: 第 | B69: 5 | C69: 回 | E69: 月 | Q69: =IF(N69="","",SUM($N$65:N69)) ->  | V69: =IF(OR(N69="",$K$62=""),"",IF(($K$62-SUM($N$65:N69))=0,"0 ",$K$62-SUM($N$65:N69))) ->  | W69: =IF(#REF!="","",IF(($K$4-SUM(#REF!))=0,"0 ",$K$4-SUM(#REF!))) ->  | Y69: =IF(X69="保留金",N69*0.1,IF(X69="保留金解除",SUM($Y$65:Y68),"")) -> 
A70: 第 | B70: 6 | C70: 回 | E70: 月 | Q70: =IF(N70="","",SUM($N$65:N70)) ->  | V70: =IF(OR(N70="",$K$62=""),"",IF(($K$62-SUM($N$65:N70))=0,"0 ",$K$62-SUM($N$65:N70))) ->  | W70: =IF(#REF!="","",IF(($K$4-SUM(#REF!))=0,"0 ",$K$4-SUM(#REF!))) ->  | Y70: =IF(X70="保留金",N70*0.1,IF(X70="保留金解除",SUM($Y$65:Y69),"")) -> 
A71: 第 | B71: 7 | C71: 回 | E71: 月 | Q71: =IF(N71="","",SUM($N$65:N71)) ->  | V71: =IF(OR(N71="",$K$62=""),"",IF(($K$62-SUM($N$65:N71))=0,"0 ",$K$62-SUM($N$65:N71))) ->  | W71: =IF(#REF!="","",IF(($K$4-SUM(#REF!))=0,"0 ",$K$4-SUM(#REF!))) ->  | Y71: =IF(X71="保留金",N71*0.1,IF(X71="保留金解除",SUM($Y$65:Y70),"")) -> 
A72: 第 | B72: 8 | C72: 回 | E72: 月 | Q72: =IF(N72="","",SUM($N$65:N72)) ->  | V72: =IF(OR(N72="",$K$62=""),"",IF(($K$62-SUM($N$65:N72))=0,"0 ",$K$62-SUM($N$65:N72))) ->  | W72: =IF(#REF!="","",IF(($K$4-SUM(#REF!))=0,"0 ",$K$4-SUM(#REF!))) ->  | Y72: =IF(X72="保留金",N72*0.1,IF(X72="保留金解除",SUM($Y$65:Y71),"")) -> 
A73: 第 | B73: 9 | C73: 回 | E73: 月 | Q73: =IF(N73="","",SUM($N$65:N73)) ->  | V73: =IF(OR(N73="",$K$62=""),"",IF(($K$62-SUM($N$65:N73))=0,"0 ",$K$62-SUM($N$65:N73))) ->  | W73: =IF(#REF!="","",IF(($K$4-SUM(#REF!))=0,"0 ",$K$4-SUM(#REF!))) ->  | Y73: =IF(X73="保留金",N73*0.1,IF(X73="保留金解除",SUM($Y$65:Y72),"")) -> 
A74: 第 | B74: 10 | C74: 回 | E74: 月 | Q74: =IF(N74="","",SUM($N$65:N74)) ->  | V74: =IF(OR(N74="",$K$62=""),"",IF(($K$62-SUM($N$65:N74))=0,"0 ",$K$62-SUM($N$65:N74))) ->  | W74: =IF(#REF!="","",IF(($K$4-SUM(#REF!))=0,"0 ",$K$4-SUM(#REF!))) ->  | Y74: =IF(X74="保留金",N74*0.1,IF(X74="保留金解除",SUM($Y$65:Y73),"")) -> 
A75: 第 | B75: 11 | C75: 回 | E75: 月 | Q75: =IF(N75="","",SUM($N$65:N75)) ->  | V75: =IF(OR(N75="",$K$62=""),"",IF(($K$62-SUM($N$65:N75))=0,"0 ",$K$62-SUM($N$65:N75))) ->  | W75: =IF(#REF!="","",IF(($K$4-SUM(#REF!))=0,"0 ",$K$4-SUM(#REF!))) ->  | Y75: =IF(X75="保留金",N75*0.1,IF(X75="保留金解除",SUM($Y$65:Y74),"")) -> 
A76: 第 | B76: 12 | C76: 回 | E76: 月 | Q76: =IF(N76="","",SUM($N$65:N76)) ->  | V76: =IF(OR(N76="",$K$62=""),"",IF(($K$62-SUM($N$65:N76))=0,"0 ",$K$62-SUM($N$65:N76))) ->  | W76: =IF(#REF!="","",IF(($K$4-SUM(#REF!))=0,"0 ",$K$4-SUM(#REF!))) ->  | Y76: =IF(X76="保留金",N76*0.1,IF(X76="保留金解除",SUM($Y$65:Y75),"")) -> 
A77: 第 | B77: 13 | C77: 回 | E77: 月 | Q77: =IF(N77="","",SUM($N$65:N77)) ->  | V77: =IF(OR(N77="",$K$62=""),"",IF(($K$62-SUM($N$65:N77))=0,"0 ",$K$62-SUM($N$65:N77))) ->  | W77: =IF(#REF!="","",IF(($K$4-SUM(#REF!))=0,"0 ",$K$4-SUM(#REF!))) ->  | Y77: =IF(X77="保留金",N77*0.1,IF(X77="保留金解除",SUM($Y$65:Y76),"")) -> 
A78: 第 | B78: 14 | C78: 回 | E78: 月 | Q78: =IF(N78="","",SUM($N$65:N78)) ->  | V78: =IF(OR(N78="",$K$62=""),"",IF(($K$62-SUM($N$65:N78))=0,"0 ",$K$62-SUM($N$65:N78))) ->  | W78: =IF(#REF!="","",IF(($K$4-SUM(#REF!))=0,"0 ",$K$4-SUM(#REF!))) ->  | Y78: =IF(X78="保留金",N78*0.1,IF(X78="保留金解除",SUM($Y$65:Y77),"")) -> 
A79: 第 | B79: 15 | C79: 回 | E79: 月 | Q79: =IF(N79="","",SUM($N$65:N79)) ->  | V79: =IF(OR(N79="",$K$62=""),"",IF(($K$62-SUM($N$65:N79))=0,"0 ",$K$62-SUM($N$65:N79))) ->  | W79: =IF(#REF!="","",IF(($K$4-SUM(#REF!))=0,"0 ",$K$4-SUM(#REF!))) ->  | Y79: =IF(X79="保留金",N79*0.1,IF(X79="保留金解除",SUM($Y$65:Y78),"")) -> 
A80: 第 | B80: 16 | C80: 回 | E80: 月 | Q80: =IF(N80="","",SUM($N$65:N80)) ->  | V80: =IF(OR(N80="",$K$62=""),"",IF(($K$62-SUM($N$65:N80))=0,"0 ",$K$62-SUM($N$65:N80))) ->  | W80: =IF(#REF!="","",IF(($K$4-SUM(#REF!))=0,"0 ",$K$4-SUM(#REF!))) ->  | Y80: =IF(X80="保留金",N80*0.1,IF(X80="保留金解除",SUM($Y$65:Y79),"")) -> 
A81: 第 | B81: 17 | C81: 回 | E81: 月 | Q81: =IF(N81="","",SUM($N$65:N81)) ->  | V81: =IF(OR(N81="",$K$62=""),"",IF(($K$62-SUM($N$65:N81))=0,"0 ",$K$62-SUM($N$65:N81))) ->  | W81: =IF(#REF!="","",IF(($K$4-SUM(#REF!))=0,"0 ",$K$4-SUM(#REF!))) ->  | Y81: =IF(X81="保留金",N81*0.1,IF(X81="保留金解除",SUM($Y$65:Y80),"")) -> 
A82: 第 | B82: 18 | C82: 回 | E82: 月 | Q82: =IF(N82="","",SUM($N$65:N82)) ->  | V82: =IF(OR(N82="",$K$62=""),"",IF(($K$62-SUM($N$65:N82))=0,"0 ",$K$62-SUM($N$65:N82))) ->  | W82: =IF(#REF!="","",IF(($K$4-SUM(#REF!))=0,"0 ",$K$4-SUM(#REF!))) ->  | Y82: =IF(X82="保留金",N82*0.1,IF(X82="保留金解除",SUM($Y$65:Y81),"")) -> 
A83: 第 | B83: 19 | C83: 回 | E83: 月 | Q83: =IF(N83="","",SUM($N$65:N83)) ->  | V83: =IF(OR(N83="",$K$62=""),"",IF(($K$62-SUM($N$65:N83))=0,"0 ",$K$62-SUM($N$65:N83))) ->  | W83: =IF(#REF!="","",IF(($K$4-SUM(#REF!))=0,"0 ",$K$4-SUM(#REF!))) ->  | Y83: =IF(X83="保留金",N83*0.1,IF(X83="保留金解除",SUM($Y$65:Y82),"")) -> 
A84: 第 | B84: 20 | C84: 回 | E84: 月 | Q84: =IF(N84="","",SUM($N$65:N84)) ->  | V84: =IF(OR(N84="",$K$62=""),"",IF(($K$62-SUM($N$65:N84))=0,"0 ",$K$62-SUM($N$65:N84))) ->  | W84: =IF(#REF!="","",IF(($K$4-SUM(#REF!))=0,"0 ",$K$4-SUM(#REF!))) ->  | Y84: =IF(X84="保留金",N84*0.1,IF(X84="保留金解除",SUM($Y$65:Y83),"")) -> 
J86: 請求金額累計（税抜） | N86: =SUM(N65:P84) -> 0 | T86: 請求後残高金額（税抜） | W86: =IF(K62="","",IF((K62-N86)=0,"0 ",K62-N86)) -> 
A88: 請負工事内訳書
G89: 現場名称： | V89: 請求日 | W89: =合計請求書!$R$2 -> 00:00:00
G90: 契約工期： | O90: ～ | V90: 会社名 | W90: =合計請求書!$P$7 -> 0
G91: 契約金額(税抜)：
A93: 請 求 | F93: 請負内容 | L93: 請求金額 (税抜) | Q93: 累計金額 (税抜) | U93: 請求後残高金額 (税抜) | X93: 保留金（10％）
A94: 第 | B94: 1 | C94: 回 | E94: 月 | L94: =IFERROR(ROUND(N94/K$91,3),"") ->  | Q94: =IF(N94="","",SUM($N$94:N94)) ->  | U94: =IF(OR(K91="",N94=""),"",IF(V94/$K$91=0,"",1-L94)) ->  | V94: =IF(OR(N94="",$K$91=""),"",IF(($K$91-SUM($N$94:N94))=0,"0 ",$K$91-SUM($N$94:N94))) ->  | W94: =IF(#REF!="","",IF(($K$4-SUM(#REF!))=0,"0 ",$K$4-SUM(#REF!))) ->  | Y94: =IF(X94="保留金",N94*0.1,"") -> 
A95: 第 | B95: 2 | C95: 回 | E95: 月 | Q95: =IF(N95="","",SUM($N$94:N95)) ->  | U95: =IF(OR($K$91="",N95=""),"",IF(V95/$K$91=0,"",ROUNDDOWN(V95/$K$91,3))) ->  | V95: =IF(OR(N95="",$K$91=""),"",IF(($K$91-SUM($N$94:N95))=0,"0 ",$K$91-SUM($N$94:N95))) ->  | W95: =IF(#REF!="","",IF(($K$4-SUM(#REF!))=0,"0 ",$K$4-SUM(#REF!))) ->  | Y95: =IF(X95="保留金",N95*0.1,IF(X95="保留金解除",SUM($Y$94:Y94),"")) -> 
A96: 第 | B96: 3 | C96: 回 | E96: 月 | Q96: =IF(N96="","",SUM($N$94:N96)) ->  | U96: =IF(OR($K$91="",N96=""),"",IF(V96/$K$91=0,"",ROUNDDOWN(V96/$K$91,3))) ->  | V96: =IF(OR(N96="",$K$91=""),"",IF(($K$91-SUM($N$94:N96))=0,"0 ",$K$91-SUM($N$94:N96))) ->  | W96: =IF(#REF!="","",IF(($K$4-SUM(#REF!))=0,"0 ",$K$4-SUM(#REF!))) ->  | Y96: =IF(X96="保留金",N96*0.1,IF(X96="保留金解除",SUM($Y$94:Y95),"")) -> 
A97: 第 | B97: 4 | C97: 回 | E97: 月 | Q97: =IF(N97="","",SUM($N$94:N97)) ->  | V97: =IF(OR(N97="",$K$91=""),"",IF(($K$91-SUM($N$94:N97))=0,"0 ",$K$91-SUM($N$94:N97))) ->  | W97: =IF(#REF!="","",IF(($K$4-SUM(#REF!))=0,"0 ",$K$4-SUM(#REF!))) ->  | Y97: =IF(X97="保留金",N97*0.1,IF(X97="保留金解除",SUM($Y$94:Y96),"")) -> 
A98: 第 | B98: 5 | C98: 回 | E98: 月 | Q98: =IF(N98="","",SUM($N$94:N98)) ->  | V98: =IF(OR(N98="",$K$91=""),"",IF(($K$91-SUM($N$94:N98))=0,"0 ",$K$91-SUM($N$94:N98))) ->  | W98: =IF(#REF!="","",IF(($K$4-SUM(#REF!))=0,"0 ",$K$4-SUM(#REF!))) ->  | Y98: =IF(X98="保留金",N98*0.1,IF(X98="保留金解除",SUM($Y$94:Y97),"")) -> 
A99: 第 | B99: 6 | C99: 回 | E99: 月 | Q99: =IF(N99="","",SUM($N$94:N99)) ->  | V99: =IF(OR(N99="",$K$91=""),"",IF(($K$91-SUM($N$94:N99))=0,"0 ",$K$91-SUM($N$94:N99))) ->  | W99: =IF(#REF!="","",IF(($K$4-SUM(#REF!))=0,"0 ",$K$4-SUM(#REF!))) ->  | Y99: =IF(X99="保留金",N99*0.1,IF(X99="保留金解除",SUM($Y$94:Y98),"")) -> 
A100: 第 | B100: 7 | C100: 回 | E100: 月 | Q100: =IF(N100="","",SUM($N$94:N100)) ->  | V100: =IF(OR(N100="",$K$91=""),"",IF(($K$91-SUM($N$94:N100))=0,"0 ",$K$91-SUM($N$94:N100))) ->  | W100: =IF(#REF!="","",IF(($K$4-SUM(#REF!))=0,"0 ",$K$4-SUM(#REF!))) ->  | Y100: =IF(X100="保留金",N100*0.1,IF(X100="保留金解除",SUM($Y$94:Y99),"")) -> 
A101: 第 | B101: 8 | C101: 回 | E101: 月 | Q101: =IF(N101="","",SUM($N$94:N101)) ->  | V101: =IF(OR(N101="",$K$91=""),"",IF(($K$91-SUM($N$94:N101))=0,"0 ",$K$91-SUM($N$94:N101))) ->  | W101: =IF(#REF!="","",IF(($K$4-SUM(#REF!))=0,"0 ",$K$4-SUM(#REF!))) ->  | Y101: =IF(X101="保留金",N101*0.1,IF(X101="保留金解除",SUM($Y$94:Y100),"")) -> 
A102: 第 | B102: 9 | C102: 回 | E102: 月 | Q102: =IF(N102="","",SUM($N$94:N102)) ->  | V102: =IF(OR(N102="",$K$91=""),"",IF(($K$91-SUM($N$94:N102))=0,"0 ",$K$91-SUM($N$94:N102))) ->  | W102: =IF(#REF!="","",IF(($K$4-SUM(#REF!))=0,"0 ",$K$4-SUM(#REF!))) ->  | Y102: =IF(X102="保留金",N102*0.1,IF(X102="保留金解除",SUM($Y$94:Y101),"")) -> 
A103: 第 | B103: 10 | C103: 回 | E103: 月 | Q103: =IF(N103="","",SUM($N$94:N103)) ->  | V103: =IF(OR(N103="",$K$91=""),"",IF(($K$91-SUM($N$94:N103))=0,"0 ",$K$91-SUM($N$94:N103))) ->  | W103: =IF(#REF!="","",IF(($K$4-SUM(#REF!))=0,"0 ",$K$4-SUM(#REF!))) ->  | Y103: =IF(X103="保留金",N103*0.1,IF(X103="保留金解除",SUM($Y$94:Y102),"")) -> 
A104: 第 | B104: 11 | C104: 回 | E104: 月 | Q104: =IF(N104="","",SUM($N$94:N104)) ->  | V104: =IF(OR(N104="",$K$91=""),"",IF(($K$91-SUM($N$94:N104))=0,"0 ",$K$91-SUM($N$94:N104))) ->  | W104: =IF(#REF!="","",IF(($K$4-SUM(#REF!))=0,"0 ",$K$4-SUM(#REF!))) ->  | Y104: =IF(X104="保留金",N104*0.1,IF(X104="保留金解除",SUM($Y$94:Y103),"")) -> 
A105: 第 | B105: 12 | C105: 回 | E105: 月 | Q105: =IF(N105="","",SUM($N$94:N105)) ->  | V105: =IF(OR(N105="",$K$91=""),"",IF(($K$91-SUM($N$94:N105))=0,"0 ",$K$91-SUM($N$94:N105))) ->  | W105: =IF(#REF!="","",IF(($K$4-SUM(#REF!))=0,"0 ",$K$4-SUM(#REF!))) ->  | Y105: =IF(X105="保留金",N105*0.1,IF(X105="保留金解除",SUM($Y$94:Y104),"")) -> 
A106: 第 | B106: 13 | C106: 回 | E106: 月 | Q106: =IF(N106="","",SUM($N$94:N106)) ->  | V106: =IF(OR(N106="",$K$91=""),"",IF(($K$91-SUM($N$94:N106))=0,"0 ",$K$91-SUM($N$94:N106))) ->  | W106: =IF(#REF!="","",IF(($K$4-SUM(#REF!))=0,"0 ",$K$4-SUM(#REF!))) ->  | Y106: =IF(X106="保留金",N106*0.1,IF(X106="保留金解除",SUM($Y$94:Y105),"")) -> 
A107: 第 | B107: 14 | C107: 回 | E107: 月 | Q107: =IF(N107="","",SUM($N$94:N107)) ->  | V107: =IF(OR(N107="",$K$91=""),"",IF(($K$91-SUM($N$94:N107))=0,"0 ",$K$91-SUM($N$94:N107))) ->  | W107: =IF(#REF!="","",IF(($K$4-SUM(#REF!))=0,"0 ",$K$4-SUM(#REF!))) ->  | Y107: =IF(X107="保留金",N107*0.1,IF(X107="保留金解除",SUM($Y$94:Y106),"")) -> 
A108: 第 | B108: 15 | C108: 回 | E108: 月 | Q108: =IF(N108="","",SUM($N$94:N108)) ->  | V108: =IF(OR(N108="",$K$91=""),"",IF(($K$91-SUM($N$94:N108))=0,"0 ",$K$91-SUM($N$94:N108))) ->  | W108: =IF(#REF!="","",IF(($K$4-SUM(#REF!))=0,"0 ",$K$4-SUM(#REF!))) ->  | Y108: =IF(X108="保留金",N108*0.1,IF(X108="保留金解除",SUM($Y$94:Y107),"")) -> 
A109: 第 | B109: 16 | C109: 回 | E109: 月 | Q109: =IF(N109="","",SUM($N$94:N109)) ->  | V109: =IF(OR(N109="",$K$91=""),"",IF(($K$91-SUM($N$94:N109))=0,"0 ",$K$91-SUM($N$94:N109))) ->  | W109: =IF(#REF!="","",IF(($K$4-SUM(#REF!))=0,"0 ",$K$4-SUM(#REF!))) ->  | Y109: =IF(X109="保留金",N109*0.1,IF(X109="保留金解除",SUM($Y$94:Y108),"")) -> 
A110: 第 | B110: 17 | C110: 回 | E110: 月 | Q110: =IF(N110="","",SUM($N$94:N110)) ->  | V110: =IF(OR(N110="",$K$91=""),"",IF(($K$91-SUM($N$94:N110))=0,"0 ",$K$91-SUM($N$94:N110))) ->  | W110: =IF(#REF!="","",IF(($K$4-SUM(#REF!))=0,"0 ",$K$4-SUM(#REF!))) ->  | Y110: =IF(X110="保留金",N110*0.1,IF(X110="保留金解除",SUM($Y$94:Y109),"")) -> 
A111: 第 | B111: 18 | C111: 回 | E111: 月 | Q111: =IF(N111="","",SUM($N$94:N111)) ->  | V111: =IF(OR(N111="",$K$91=""),"",IF(($K$91-SUM($N$94:N111))=0,"0 ",$K$91-SUM($N$94:N111))) ->  | W111: =IF(#REF!="","",IF(($K$4-SUM(#REF!))=0,"0 ",$K$4-SUM(#REF!))) ->  | Y111: =IF(X111="保留金",N111*0.1,IF(X111="保留金解除",SUM($Y$94:Y110),"")) -> 
A112: 第 | B112: 19 | C112: 回 | E112: 月 | Q112: =IF(N112="","",SUM($N$94:N112)) ->  | V112: =IF(OR(N112="",$K$91=""),"",IF(($K$91-SUM($N$94:N112))=0,"0 ",$K$91-SUM($N$94:N112))) ->  | W112: =IF(#REF!="","",IF(($K$4-SUM(#REF!))=0,"0 ",$K$4-SUM(#REF!))) ->  | Y112: =IF(X112="保留金",N112*0.1,IF(X112="保留金解除",SUM($Y$94:Y111),"")) -> 
A113: 第 | B113: 20 | C113: 回 | E113: 月 | Q113: =IF(N113="","",SUM($N$94:N113)) ->  | V113: =IF(OR(N113="",$K$91=""),"",IF(($K$91-SUM($N$94:N113))=0,"0 ",$K$91-SUM($N$94:N113))) ->  | W113: =IF(#REF!="","",IF(($K$4-SUM(#REF!))=0,"0 ",$K$4-SUM(#REF!))) ->  | Y113: =IF(X113="保留金",N113*0.1,IF(X113="保留金解除",SUM($Y$94:Y112),"")) -> 
J115: 請求金額累計（税抜） | N115: =SUM(N94:P113) -> 0 | T115: 請求後残高金額（税抜） | W115: =IF(K91="","",IF((K91-N115)=0,"0 ",K91-N115)) -> 
A117: 請負工事内訳書
G118: 現場名称： | V118: 請求日 | W118: =合計請求書!$R$2 -> 00:00:00
G119: 契約工期： | O119: ～ | V119: 会社名 | W119: =合計請求書!$P$7 -> 0
G120: 契約金額(税抜)：
A122: 請 求 | F122: 請負内容 | L122: 請求金額 (税抜) | Q122: 累計金額 (税抜) | U122: 請求後残高金額 (税抜) | X122: 保留金（10％）
A123: 第 | B123: 1 | C123: 回 | E123: 月 | L123: =IFERROR(ROUND(N123/K$120,3),"") ->  | Q123: =IF(N123="","",SUM($N$123:N123)) ->  | U123: =IF(OR(K120="",N123=""),"",IF(V123/$K$120=0,"",1-L123)) ->  | V123: =IF(OR(N123="",$K$120=""),"",IF(($K$120-SUM($N$123:N123))=0,"0 ",$K$120-SUM($N$123:N123))) ->  | W123: =IF(#REF!="","",IF(($K$4-SUM(#REF!))=0,"0 ",$K$4-SUM(#REF!))) ->  | Y123: =IF(X123="保留金",N123*0.1,"") -> 
A124: 第 | B124: 2 | C124: 回 | E124: 月 | Q124: =IF(N124="","",SUM($N$123:N124)) ->  | U124: =IF(OR($K$120="",N124=""),"",IF(V124/$K$120=0,"",ROUNDDOWN(V124/$K$120,3))) ->  | V124: =IF(OR(N124="",$K$120=""),"",IF(($K$120-SUM($N$123:N124))=0,"0 ",$K$120-SUM($N$123:N124))) ->  | W124: =IF(#REF!="","",IF(($K$4-SUM(#REF!))=0,"0 ",$K$4-SUM(#REF!))) ->  | Y124: =IF(X124="保留金",N124*0.1,IF(X124="保留金解除",SUM($Y$123:Y123),"")) -> 
A125: 第 | B125: 3 | C125: 回 | E125: 月 | Q125: =IF(N125="","",SUM($N$123:N125)) ->  | U125: =IF(OR($K$120="",N125=""),"",IF(V125/$K$120=0,"",ROUNDDOWN(V125/$K$120,3))) ->  | V125: =IF(OR(N125="",$K$120=""),"",IF(($K$120-SUM($N$123:N125))=0,"0 ",$K$120-SUM($N$123:N125))) ->  | W125: =IF(#REF!="","",IF(($K$4-SUM(#REF!))=0,"0 ",$K$4-SUM(#REF!))) ->  | Y125: =IF(X125="保留金",N125*0.1,IF(X125="保留金解除",SUM($Y$123:Y124),"")) -> 
A126: 第 | B126: 4 | C126: 回 | E126: 月 | Q126: =IF(N126="","",SUM($N$123:N126)) ->  | V126: =IF(OR(N126="",$K$120=""),"",IF(($K$120-SUM($N$123:N126))=0,"0 ",$K$120-SUM($N$123:N126))) ->  | W126: =IF(#REF!="","",IF(($K$4-SUM(#REF!))=0,"0 ",$K$4-SUM(#REF!))) ->  | Y126: =IF(X126="保留金",N126*0.1,IF(X126="保留金解除",SUM($Y$123:Y125),"")) -> 
A127: 第 | B127: 5 | C127: 回 | E127: 月 | Q127: =IF(N127="","",SUM($N$123:N127)) ->  | V127: =IF(OR(N127="",$K$120=""),"",IF(($K$120-SUM($N$123:N127))=0,"0 ",$K$120-SUM($N$123:N127))) ->  | W127: =IF(#REF!="","",IF(($K$4-SUM(#REF!))=0,"0 ",$K$4-SUM(#REF!))) ->  | Y127: =IF(X127="保留金",N127*0.1,IF(X127="保留金解除",SUM($Y$123:Y126),"")) -> 
A128: 第 | B128: 6 | C128: 回 | E128: 月 | Q128: =IF(N128="","",SUM($N$123:N128)) ->  | V128: =IF(OR(N128="",$K$120=""),"",IF(($K$120-SUM($N$123:N128))=0,"0 ",$K$120-SUM($N$123:N128))) ->  | W128: =IF(#REF!="","",IF(($K$4-SUM(#REF!))=0,"0 ",$K$4-SUM(#REF!))) ->  | Y128: =IF(X128="保留金",N128*0.1,IF(X128="保留金解除",SUM($Y$123:Y127),"")) -> 
A129: 第 | B129: 7 | C129: 回 | E129: 月 | Q129: =IF(N129="","",SUM($N$123:N129)) ->  | V129: =IF(OR(N129="",$K$120=""),"",IF(($K$120-SUM($N$123:N129))=0,"0 ",$K$120-SUM($N$123:N129))) ->  | W129: =IF(#REF!="","",IF(($K$4-SUM(#REF!))=0,"0 ",$K$4-SUM(#REF!))) ->  | Y129: =IF(X129="保留金",N129*0.1,IF(X129="保留金解除",SUM($Y$123:Y128),"")) -> 
A130: 第 | B130: 8 | C130: 回 | E130: 月 | Q130: =IF(N130="","",SUM($N$123:N130)) ->  | V130: =IF(OR(N130="",$K$120=""),"",IF(($K$120-SUM($N$123:N130))=0,"0 ",$K$120-SUM($N$123:N130))) ->  | W130: =IF(#REF!="","",IF(($K$4-SUM(#REF!))=0,"0 ",$K$4-SUM(#REF!))) ->  | Y130: =IF(X130="保留金",N130*0.1,IF(X130="保留金解除",SUM($Y$123:Y129),"")) -> 
A131: 第 | B131: 9 | C131: 回 | E131: 月 | Q131: =IF(N131="","",SUM($N$123:N131)) ->  | V131: =IF(OR(N131="",$K$120=""),"",IF(($K$120-SUM($N$123:N131))=0,"0 ",$K$120-SUM($N$123:N131))) ->  | W131: =IF(#REF!="","",IF(($K$4-SUM(#REF!))=0,"0 ",$K$4-SUM(#REF!))) ->  | Y131: =IF(X131="保留金",N131*0.1,IF(X131="保留金解除",SUM($Y$123:Y130),"")) -> 
A132: 第 | B132: 10 | C132: 回 | E132: 月 | Q132: =IF(N132="","",SUM($N$123:N132)) ->  | V132: =IF(OR(N132="",$K$120=""),"",IF(($K$120-SUM($N$123:N132))=0,"0 ",$K$120-SUM($N$123:N132))) ->  | W132: =IF(#REF!="","",IF(($K$4-SUM(#REF!))=0,"0 ",$K$4-SUM(#REF!))) ->  | Y132: =IF(X132="保留金",N132*0.1,IF(X132="保留金解除",SUM($Y$123:Y131),"")) -> 
A133: 第 | B133: 11 | C133: 回 | E133: 月 | Q133: =IF(N133="","",SUM($N$123:N133)) ->  | V133: =IF(OR(N133="",$K$120=""),"",IF(($K$120-SUM($N$123:N133))=0,"0 ",$K$120-SUM($N$123:N133))) ->  | W133: =IF(#REF!="","",IF(($K$4-SUM(#REF!))=0,"0 ",$K$4-SUM(#REF!))) ->  | Y133: =IF(X133="保留金",N133*0.1,IF(X133="保留金解除",SUM($Y$123:Y132),"")) -> 
A134: 第 | B134: 12 | C134: 回 | E134: 月 | Q134: =IF(N134="","",SUM($N$123:N134)) ->  | V134: =IF(OR(N134="",$K$120=""),"",IF(($K$120-SUM($N$123:N134))=0,"0 ",$K$120-SUM($N$123:N134))) ->  | W134: =IF(#REF!="","",IF(($K$4-SUM(#REF!))=0,"0 ",$K$4-SUM(#REF!))) ->  | Y134: =IF(X134="保留金",N134*0.1,IF(X134="保留金解除",SUM($Y$123:Y133),"")) -> 
A135: 第 | B135: 13 | C135: 回 | E135: 月 | Q135: =IF(N135="","",SUM($N$123:N135)) ->  | V135: =IF(OR(N135="",$K$120=""),"",IF(($K$120-SUM($N$123:N135))=0,"0 ",$K$120-SUM($N$123:N135))) ->  | W135: =IF(#REF!="","",IF(($K$4-SUM(#REF!))=0,"0 ",$K$4-SUM(#REF!))) ->  | Y135: =IF(X135="保留金",N135*0.1,IF(X135="保留金解除",SUM($Y$123:Y134),"")) -> 
A136: 第 | B136: 14 | C136: 回 | E136: 月 | Q136: =IF(N136="","",SUM($N$123:N136)) ->  | V136: =IF(OR(N136="",$K$120=""),"",IF(($K$120-SUM($N$123:N136))=0,"0 ",$K$120-SUM($N$123:N136))) ->  | W136: =IF(#REF!="","",IF(($K$4-SUM(#REF!))=0,"0 ",$K$4-SUM(#REF!))) ->  | Y136: =IF(X136="保留金",N136*0.1,IF(X136="保留金解除",SUM($Y$123:Y135),"")) -> 
A137: 第 | B137: 15 | C137: 回 | E137: 月 | Q137: =IF(N137="","",SUM($N$123:N137)) ->  | V137: =IF(OR(N137="",$K$120=""),"",IF(($K$120-SUM($N$123:N137))=0,"0 ",$K$120-SUM($N$123:N137))) ->  | W137: =IF(#REF!="","",IF(($K$4-SUM(#REF!))=0,"0 ",$K$4-SUM(#REF!))) ->  | Y137: =IF(X137="保留金",N137*0.1,IF(X137="保留金解除",SUM($Y$123:Y136),"")) -> 
A138: 第 | B138: 16 | C138: 回 | E138: 月 | Q138: =IF(N138="","",SUM($N$123:N138)) ->  | V138: =IF(OR(N138="",$K$120=""),"",IF(($K$120-SUM($N$123:N138))=0,"0 ",$K$120-SUM($N$123:N138))) ->  | W138: =IF(#REF!="","",IF(($K$4-SUM(#REF!))=0,"0 ",$K$4-SUM(#REF!))) ->  | Y138: =IF(X138="保留金",N138*0.1,IF(X138="保留金解除",SUM($Y$123:Y137),"")) -> 
A139: 第 | B139: 17 | C139: 回 | E139: 月 | Q139: =IF(N139="","",SUM($N$123:N139)) ->  | V139: =IF(OR(N139="",$K$120=""),"",IF(($K$120-SUM($N$123:N139))=0,"0 ",$K$120-SUM($N$123:N139))) ->  | W139: =IF(#REF!="","",IF(($K$4-SUM(#REF!))=0,"0 ",$K$4-SUM(#REF!))) ->  | Y139: =IF(X139="保留金",N139*0.1,IF(X139="保留金解除",SUM($Y$123:Y138),"")) -> 
A140: 第 | B140: 18 | C140: 回 | E140: 月 | Q140: =IF(N140="","",SUM($N$123:N140)) ->  | V140: =IF(OR(N140="",$K$120=""),"",IF(($K$120-SUM($N$123:N140))=0,"0 ",$K$120-SUM($N$123:N140))) ->  | W140: =IF(#REF!="","",IF(($K$4-SUM(#REF!))=0,"0 ",$K$4-SUM(#REF!))) ->  | Y140: =IF(X140="保留金",N140*0.1,IF(X140="保留金解除",SUM($Y$123:Y139),"")) -> 
A141: 第 | B141: 19 | C141: 回 | E141: 月 | Q141: =IF(N141="","",SUM($N$123:N141)) ->  | V141: =IF(OR(N141="",$K$120=""),"",IF(($K$120-SUM($N$123:N141))=0,"0 ",$K$120-SUM($N$123:N141))) ->  | W141: =IF(#REF!="","",IF(($K$4-SUM(#REF!))=0,"0 ",$K$4-SUM(#REF!))) ->  | Y141: =IF(X141="保留金",N141*0.1,IF(X141="保留金解除",SUM($Y$123:Y140),"")) -> 
A142: 第 | B142: 20 | C142: 回 | E142: 月 | Q142: =IF(N142="","",SUM($N$123:N142)) ->  | V142: =IF(OR(N142="",$K$120=""),"",IF(($K$120-SUM($N$123:N142))=0,"0 ",$K$120-SUM($N$123:N142))) ->  | W142: =IF(#REF!="","",IF(($K$4-SUM(#REF!))=0,"0 ",$K$4-SUM(#REF!))) ->  | Y142: =IF(X142="保留金",N142*0.1,IF(X142="保留金解除",SUM($Y$123:Y141),"")) -> 
J144: 請求金額累計（税抜） | N144: =SUM(N123:P142) -> 0 | T144: 請求後残高金額（税抜） | W144: =IF(K120="","",IF((K120-N144)=0,"0 ",K120-N144)) -> 

Sheet 請負内訳書 (2ページ 保留金あり)
A1: 請負工事内訳書
G2: 現場名称： | V2: 請求日 | W2: =合計請求書!R2 -> 00:00:00
G3: 契約工期： | O3: ～ | V3: 会社名 | W3: =合計請求書!$P$7 -> 0
G4: 契約金額(税抜)：
A6: 請 求 | F6: 請負内容 | L6: 請求金額 (税抜) | Q6: 累計金額 (税抜) | U6: 請求後残高金額 (税抜) | X6: 保留金（10％）
A7: 第 | B7: 1 | C7: 回 | E7: 月 | L7: =IFERROR(ROUND(N7/K$4,3),"") ->  | Q7: =IF(N7="","",SUM($N$7:N7)) ->  | U7: =IF(OR(K4="",N7=""),"",IF(V7/$K$4=0,"",1-L7)) ->  | V7: =IF(OR(N7="",$K$4=""),"",IF(($K$4-SUM($N$7:N7))=0,"0 ",$K$4-SUM($N$7:N7))) ->  | W7: =IF(#REF!="","",IF(($K$4-SUM(#REF!))=0,"0 ",$K$4-SUM(#REF!))) ->  | Y7: =IF(X7="保留金",N7*0.1,IF(X7="保留金解除",$K$4*0.1,"")) -> 
A8: 第 | B8: 2 | C8: 回 | E8: 月 | Q8: =IF(N8="","",SUM($N$7:N8)) ->  | U8: =IF(OR($K$4="",N8=""),"",IF(V8/$K$4=0,"",ROUNDDOWN(V8/$K$4,3))) ->  | V8: =IF(OR(N8="",$K$4=""),"",IF(($K$4-SUM($N$7:N8))=0,"0 ",$K$4-SUM($N$7:N8))) ->  | W8: =IF(#REF!="","",IF(($K$4-SUM(#REF!))=0,"0 ",$K$4-SUM(#REF!))) ->  | Y8: =IF(X8="保留金",N8*0.1,IF(X8="保留金解除",SUM($Y$7:Y7),"")) -> 
A9: 第 | B9: 3 | C9: 回 | E9: 月 | Q9: =IF(N9="","",SUM($N$7:N9)) ->  | U9: =IF(OR($K$4="",N9=""),"",IF(V9/$K$4=0,"",ROUNDDOWN(V9/$K$4,3))) ->  | V9: =IF(OR(N9="",$K$4=""),"",IF(($K$4-SUM($N$7:N9))=0,"0 ",$K$4-SUM($N$7:N9))) ->  | W9: =IF(#REF!="","",IF(($K$4-SUM(#REF!))=0,"0 ",$K$4-SUM(#REF!))) ->  | Y9: =IF(X9="保留金",N9*0.1,IF(X9="保留金解除",SUM($Y$7:Y8),"")) -> 
A10: 第 | B10: 4 | C10: 回 | E10: 月 | Q10: =IF(N10="","",SUM($N$7:N10)) ->  | V10: =IF(OR(N10="",$K$4=""),"",IF(($K$4-SUM($N$7:N10))=0,"0 ",$K$4-SUM($N$7:N10))) ->  | W10: =IF(#REF!="","",IF(($K$4-SUM(#REF!))=0,"0 ",$K$4-SUM(#REF!))) ->  | Y10: =IF(X10="保留金",N10*0.1,IF(X10="保留金解除",SUM($Y$7:Y9),"")) -> 
A11: 第 | B11: 5 | C11: 回 | E11: 月 | Q11: =IF(N11="","",SUM($N$7:N11)) ->  | V11: =IF(OR(N11="",$K$4=""),"",IF(($K$4-SUM($N$7:N11))=0,"0 ",$K$4-SUM($N$7:N11))) ->  | W11: =IF(#REF!="","",IF(($K$4-SUM(#REF!))=0,"0 ",$K$4-SUM(#REF!))) ->  | Y11: =IF(X11="保留金",N11*0.1,IF(X11="保留金解除",SUM($Y$7:Y10),"")) -> 
A12: 第 | B12: 6 | C12: 回 | E12: 月 | Q12: =IF(N12="","",SUM($N$7:N12)) ->  | V12: =IF(OR(N12="",$K$4=""),"",IF(($K$4-SUM($N$7:N12))=0,"0 ",$K$4-SUM($N$7:N12))) ->  | W12: =IF(#REF!="","",IF(($K$4-SUM(#REF!))=0,"0 ",$K$4-SUM(#REF!))) ->  | Y12: =IF(X12="保留金",N12*0.1,IF(X12="保留金解除",SUM($Y$7:Y11),"")) -> 
A13: 第 | B13: 7 | C13: 回 | E13: 月 | Q13: =IF(N13="","",SUM($N$7:N13)) ->  | V13: =IF(OR(N13="",$K$4=""),"",IF(($K$4-SUM($N$7:N13))=0,"0 ",$K$4-SUM($N$7:N13))) ->  | W13: =IF(#REF!="","",IF(($K$4-SUM(#REF!))=0,"0 ",$K$4-SUM(#REF!))) ->  | Y13: =IF(X13="保留金",N13*0.1,IF(X13="保留金解除",SUM($Y$7:Y12),"")) -> 
A14: 第 | B14: 8 | C14: 回 | E14: 月 | Q14: =IF(N14="","",SUM($N$7:N14)) ->  | V14: =IF(OR(N14="",$K$4=""),"",IF(($K$4-SUM($N$7:N14))=0,"0 ",$K$4-SUM($N$7:N14))) ->  | W14: =IF(#REF!="","",IF(($K$4-SUM(#REF!))=0,"0 ",$K$4-SUM(#REF!))) ->  | Y14: =IF(X14="保留金",N14*0.1,IF(X14="保留金解除",SUM($Y$7:Y13),"")) -> 
A15: 第 | B15: 9 | C15: 回 | E15: 月 | Q15: =IF(N15="","",SUM($N$7:N15)) ->  | V15: =IF(OR(N15="",$K$4=""),"",IF(($K$4-SUM($N$7:N15))=0,"0 ",$K$4-SUM($N$7:N15))) ->  | W15: =IF(#REF!="","",IF(($K$4-SUM(#REF!))=0,"0 ",$K$4-SUM(#REF!))) ->  | Y15: =IF(X15="保留金",N15*0.1,IF(X15="保留金解除",SUM($Y$7:Y14),"")) -> 
A16: 第 | B16: 10 | C16: 回 | E16: 月 | Q16: =IF(N16="","",SUM($N$7:N16)) ->  | V16: =IF(OR(N16="",$K$4=""),"",IF(($K$4-SUM($N$7:N16))=0,"0 ",$K$4-SUM($N$7:N16))) ->  | W16: =IF(#REF!="","",IF(($K$4-SUM(#REF!))=0,"0 ",$K$4-SUM(#REF!))) ->  | Y16: =IF(X16="保留金",N16*0.1,IF(X16="保留金解除",SUM($Y$7:Y15),"")) -> 
A17: 第 | B17: 11 | C17: 回 | E17: 月 | Q17: =IF(N17="","",SUM($N$7:N17)) ->  | V17: =IF(OR(N17="",$K$4=""),"",IF(($K$4-SUM($N$7:N17))=0,"0 ",$K$4-SUM($N$7:N17))) ->  | W17: =IF(#REF!="","",IF(($K$4-SUM(#REF!))=0,"0 ",$K$4-SUM(#REF!))) ->  | Y17: =IF(X17="保留金",N17*0.1,IF(X17="保留金解除",SUM($Y$7:Y16),"")) -> 
A18: 第 | B18: 12 | C18: 回 | E18: 月 | Q18: =IF(N18="","",SUM($N$7:N18)) ->  | V18: =IF(OR(N18="",$K$4=""),"",IF(($K$4-SUM($N$7:N18))=0,"0 ",$K$4-SUM($N$7:N18))) ->  | W18: =IF(#REF!="","",IF(($K$4-SUM(#REF!))=0,"0 ",$K$4-SUM(#REF!))) ->  | Y18: =IF(X18="保留金",N18*0.1,IF(X18="保留金解除",SUM($Y$7:Y17),"")) -> 
A19: 第 | B19: 13 | C19: 回 | E19: 月 | Q19: =IF(N19="","",SUM($N$7:N19)) ->  | V19: =IF(OR(N19="",$K$4=""),"",IF(($K$4-SUM($N$7:N19))=0,"0 ",$K$4-SUM($N$7:N19))) ->  | W19: =IF(#REF!="","",IF(($K$4-SUM(#REF!))=0,"0 ",$K$4-SUM(#REF!))) ->  | Y19: =IF(X19="保留金",N19*0.1,IF(X19="保留金解除",SUM($Y$7:Y18),"")) -> 
A20: 第 | B20: 14 | C20: 回 | E20: 月 | Q20: =IF(N20="","",SUM($N$7:N20)) ->  | V20: =IF(OR(N20="",$K$4=""),"",IF(($K$4-SUM($N$7:N20))=0,"0 ",$K$4-SUM($N$7:N20))) ->  | W20: =IF(#REF!="","",IF(($K$4-SUM(#REF!))=0,"0 ",$K$4-SUM(#REF!))) ->  | Y20: =IF(X20="保留金",N20*0.1,IF(X20="保留金解除",SUM($Y$7:Y19),"")) -> 
A21: 第 | B21: 15 | C21: 回 | E21: 月 | Q21: =IF(N21="","",SUM($N$7:N21)) ->  | V21: =IF(OR(N21="",$K$4=""),"",IF(($K$4-SUM($N$7:N21))=0,"0 ",$K$4-SUM($N$7:N21))) ->  | W21: =IF(#REF!="","",IF(($K$4-SUM(#REF!))=0,"0 ",$K$4-SUM(#REF!))) ->  | Y21: =IF(X21="保留金",N21*0.1,IF(X21="保留金解除",SUM($Y$7:Y20),"")) -> 
A22: 第 | B22: 16 | C22: 回 | E22: 月 | Q22: =IF(N22="","",SUM($N$7:N22)) ->  | V22: =IF(OR(N22="",$K$4=""),"",IF(($K$4-SUM($N$7:N22))=0,"0 ",$K$4-SUM($N$7:N22))) ->  | W22: =IF(#REF!="","",IF(($K$4-SUM(#REF!))=0,"0 ",$K$4-SUM(#REF!))) ->  | Y22: =IF(X22="保留金",N22*0.1,IF(X22="保留金解除",SUM($Y$7:Y21),"")) -> 
A23: 第 | B23: 17 | C23: 回 | E23: 月 | Q23: =IF(N23="","",SUM($N$7:N23)) ->  | V23: =IF(OR(N23="",$K$4=""),"",IF(($K$4-SUM($N$7:N23))=0,"0 ",$K$4-SUM($N$7:N23))) ->  | W23: =IF(#REF!="","",IF(($K$4-SUM(#REF!))=0,"0 ",$K$4-SUM(#REF!))) ->  | Y23: =IF(X23="保留金",N23*0.1,IF(X23="保留金解除",SUM($Y$7:Y22),"")) -> 
A24: 第 | B24: 18 | C24: 回 | E24: 月 | Q24: =IF(N24="","",SUM($N$7:N24)) ->  | V24: =IF(OR(N24="",$K$4=""),"",IF(($K$4-SUM($N$7:N24))=0,"0 ",$K$4-SUM($N$7:N24))) ->  | W24: =IF(#REF!="","",IF(($K$4-SUM(#REF!))=0,"0 ",$K$4-SUM(#REF!))) ->  | Y24: =IF(X24="保留金",N24*0.1,IF(X24="保留金解除",SUM($Y$7:Y23),"")) -> 
A25: 第 | B25: 19 | C25: 回 | E25: 月 | Q25: =IF(N25="","",SUM($N$7:N25)) ->  | V25: =IF(OR(N25="",$K$4=""),"",IF(($K$4-SUM($N$7:N25))=0,"0 ",$K$4-SUM($N$7:N25))) ->  | W25: =IF(#REF!="","",IF(($K$4-SUM(#REF!))=0,"0 ",$K$4-SUM(#REF!))) ->  | Y25: =IF(X25="保留金",N25*0.1,IF(X25="保留金解除",SUM($Y$7:Y24),"")) -> 
A26: 第 | B26: 20 | C26: 回 | E26: 月 | Q26: =IF(N26="","",SUM($N$7:N26)) ->  | V26: =IF(OR(N26="",$K$4=""),"",IF(($K$4-SUM($N$7:N26))=0,"0 ",$K$4-SUM($N$7:N26))) ->  | W26: =IF(#REF!="","",IF(($K$4-SUM(#REF!))=0,"0 ",$K$4-SUM(#REF!))) ->  | Y26: =IF(X26="保留金",N26*0.1,IF(X26="保留金解除",SUM($Y$7:Y25),"")) -> 
J28: 請求金額累計（税抜） | N28: =SUM(N7:P26) -> 0 | T28: 請求後残高金額（税抜） | W28: =IF(K4="","",IF((K4-N28)=0,"0 ",K4-N28)) -> 
A30: 請負工事内訳書
G31: 現場名称： | K31: =K2 -> 0 | V31: 請求日 | W31: =W2 -> 00:00:00
G32: 契約工期： | K32: =K3 -> 00:00:00 | O32: ～ | P32: =P3 -> 00:00:00 | V32: 会社名 | W32: =W3 -> 0
G33: 契約金額(税抜)： | K33: =K4 -> 0
A35: 請 求 | F35: 請負内容 | L35: 請求金額 (税抜) | Q35: 累計金額 (税抜) | U35: 請求後残高金額 (税抜) | X35: 保留金（10％）
A36: 第 | B36: 21 | C36: 回 | E36: 月 | L36: =IFERROR(ROUND(N36/K$4,3),"") ->  | Q36: =IF(N36="","",IF(V26="0 ","",SUM($N$7:N26))) ->  | U36: =IF(OR($K$4="",N36=""),"",IF(V36/$K$4=0,"",ROUNDDOWN(V36/$K$33,3))) ->  | V36: =IF(OR(N36="",$K$4=""),"",IF(($K$4-SUM($N$7:$N$26,$N$36:N36))=0,"0 ",$K$4-SUM($N$7:$N$26,$N$36:N36))) ->  | W36: =IF(#REF!="","",IF(($K$4-SUM(#REF!))=0,"0 ",$K$4-SUM(#REF!))) ->  | Y36: =IF(X36="保留金",N36*0.1,IF(X36="保留金解除",SUM($Y$7:Y26),"")) -> 
A37: 第 | B37: 22 | C37: 回 | E37: 月 | Q37: =IF(N37="","",IF(V36="0 ","",SUM($N$7:$N$26,$N$36:N36))) ->  | U37: =IF(OR($K$4="",N37=""),"",IF(V37/$K$4=0,"",ROUNDDOWN(V37/$K$33,3))) ->  | V37: =IF(OR(N37="",$K$4=""),"",IF(($K$4-SUM($N$7:$N$26,$N$36:N37))=0,"0 ",$K$4-SUM($N$7:$N$26,$N$36:N37))) ->  | W37: =IF(#REF!="","",IF(($K$4-SUM(#REF!))=0,"0 ",$K$4-SUM(#REF!))) ->  | Y37: =IF(X37="保留金",N37*0.1,IF(X37="保留金解除",SUM($Y$7:$Y$26,$Y$36:Y36),"")) -> 
A38: 第 | B38: 23 | C38: 回 | E38: 月 | Q38: =IF(N38="","",IF(V37="0 ","",SUM($N$7:$N$26,$N$36:N37))) ->  | V38: =IF(OR(N38="",$K$4=""),"",IF(($K$4-SUM($N$7:$N$26,$N$36:N38))=0,"0 ",$K$4-SUM($N$7:$N$26,$N$36:N38))) ->  | W38: =IF(#REF!="","",IF(($K$4-SUM(#REF!))=0,"0 ",$K$4-SUM(#REF!))) ->  | Y38: =IF(X38="保留金",N38*0.1,IF(X38="保留金解除",SUM($Y$7:$Y$26,$Y$36:Y37),"")) -> 
A39: 第 | B39: 24 | C39: 回 | E39: 月 | Q39: =IF(N39="","",IF(V38="0 ","",SUM($N$7:$N$26,$N$36:N38))) ->  | V39: =IF(OR(N39="",$K$4=""),"",IF(($K$4-SUM($N$7:$N$26,$N$36:N39))=0,"0 ",$K$4-SUM($N$7:$N$26,$N$36:N39))) ->  | W39: =IF(#REF!="","",IF(($K$4-SUM(#REF!))=0,"0 ",$K$4-SUM(#REF!))) ->  | Y39: =IF(X39="保留金",N39*0.1,IF(X39="保留金解除",SUM($Y$7:$Y$26,$Y$36:Y38),"")) -> 
A40: 第 | B40: 25 | C40: 回 | E40: 月 | Q40: =IF(N40="","",IF(V39="0 ","",SUM($N$7:$N$26,$N$36:N39))) ->  | V40: =IF(OR(N40="",$K$4=""),"",IF(($K$4-SUM($N$7:$N$26,$N$36:N40))=0,"0 ",$K$4-SUM($N$7:$N$26,$N$36:N40))) ->  | W40: =IF(#REF!="","",IF(($K$4-SUM(#REF!))=0,"0 ",$K$4-SUM(#REF!))) ->  | Y40: =IF(X40="保留金",N40*0.1,IF(X40="保留金解除",SUM($Y$7:$Y$26,$Y$36:Y39),"")) -> 
A41: 第 | B41: 26 | C41: 回 | E41: 月 | Q41: =IF(N41="","",IF(V40="0 ","",SUM($N$7:$N$26,$N$36:N40))) ->  | V41: =IF(OR(N41="",$K$4=""),"",IF(($K$4-SUM($N$7:$N$26,$N$36:N41))=0,"0 ",$K$4-SUM($N$7:$N$26,$N$36:N41))) ->  | W41: =IF(#REF!="","",IF(($K$4-SUM(#REF!))=0,"0 ",$K$4-SUM(#REF!))) ->  | Y41: =IF(X41="保留金",N41*0.1,IF(X41="保留金解除",SUM($Y$7:$Y$26,$Y$36:Y40),"")) -> 
A42: 第 | B42: 27 | C42: 回 | E42: 月 | Q42: =IF(N42="","",IF(V41="0 ","",SUM($N$7:$N$26,$N$36:N41))) ->  | V42: =IF(OR(N42="",$K$4=""),"",IF(($K$4-SUM($N$7:$N$26,$N$36:N42))=0,"0 ",$K$4-SUM($N$7:$N$26,$N$36:N42))) ->  | W42: =IF(#REF!="","",IF(($K$4-SUM(#REF!))=0,"0 ",$K$4-SUM(#REF!))) ->  | Y42: =IF(X42="保留金",N42*0.1,IF(X42="保留金解除",SUM($Y$7:$Y$26,$Y$36:Y41),"")) -> 
A43: 第 | B43: 28 | C43: 回 | E43: 月 | Q43: =IF(N43="","",IF(V42="0 ","",SUM($N$7:$N$26,$N$36:N42))) ->  | V43: =IF(OR(N43="",$K$4=""),"",IF(($K$4-SUM($N$7:$N$26,$N$36:N43))=0,"0 ",$K$4-SUM($N$7:$N$26,$N$36:N43))) ->  | W43: =IF(#REF!="","",IF(($K$4-SUM(#REF!))=0,"0 ",$K$4-SUM(#REF!))) ->  | Y43: =IF(X43="保留金",N43*0.1,IF(X43="保留金解除",SUM($Y$7:$Y$26,$Y$36:Y42),"")) -> 
A44: 第 | B44: 29 | C44: 回 | E44: 月 | Q44: =IF(N44="","",IF(V43="0 ","",SUM($N$7:$N$26,$N$36:N43))) ->  | V44: =IF(OR(N44="",$K$4=""),"",IF(($K$4-SUM($N$7:$N$26,$N$36:N44))=0,"0 ",$K$4-SUM($N$7:$N$26,$N$36:N44))) ->  | W44: =IF(#REF!="","",IF(($K$4-SUM(#REF!))=0,"0 ",$K$4-SUM(#REF!))) ->  | Y44: =IF(X44="保留金",N44*0.1,IF(X44="保留金解除",SUM($Y$7:$Y$26,$Y$36:Y43),"")) -> 
A45: 第 | B45: 30 | C45: 回 | E45: 月 | Q45: =IF(N45="","",IF(V44="0 ","",SUM($N$7:$N$26,$N$36:N44))) ->  | V45: =IF(OR(N45="",$K$4=""),"",IF(($K$4-SUM($N$7:$N$26,$N$36:N45))=0,"0 ",$K$4-SUM($N$7:$N$26,$N$36:N45))) ->  | W45: =IF(#REF!="","",IF(($K$4-SUM(#REF!))=0,"0 ",$K$4-SUM(#REF!))) ->  | Y45: =IF(X45="保留金",N45*0.1,IF(X45="保留金解除",SUM($Y$7:$Y$26,$Y$36:Y44),"")) -> 
A46: 第 | B46: 31 | C46: 回 | E46: 月 | Q46: =IF(N46="","",IF(V45="0 ","",SUM($N$7:$N$26,$N$36:N45))) ->  | V46: =IF(OR(N46="",$K$4=""),"",IF(($K$4-SUM($N$7:$N$26,$N$36:N46))=0,"0 ",$K$4-SUM($N$7:$N$26,$N$36:N46))) ->  | W46: =IF(#REF!="","",IF(($K$4-SUM(#REF!))=0,"0 ",$K$4-SUM(#REF!))) ->  | Y46: =IF(X46="保留金",N46*0.1,IF(X46="保留金解除",SUM($Y$7:$Y$26,$Y$36:Y45),"")) -> 
A47: 第 | B47: 32 | C47: 回 | E47: 月 | Q47: =IF(N47="","",IF(V46="0 ","",SUM($N$7:$N$26,$N$36:N46))) ->  | V47: =IF(OR(N47="",$K$4=""),"",IF(($K$4-SUM($N$7:$N$26,$N$36:N47))=0,"0 ",$K$4-SUM($N$7:$N$26,$N$36:N47))) ->  | W47: =IF(#REF!="","",IF(($K$4-SUM(#REF!))=0,"0 ",$K$4-SUM(#REF!))) ->  | Y47: =IF(X47="保留金",N47*0.1,IF(X47="保留金解除",SUM($Y$7:$Y$26,$Y$36:Y46),"")) -> 
A48: 第 | B48: 33 | C48: 回 | E48: 月 | Q48: =IF(N48="","",IF(V47="0 ","",SUM($N$7:$N$26,$N$36:N47))) ->  | V48: =IF(OR(N48="",$K$4=""),"",IF(($K$4-SUM($N$7:$N$26,$N$36:N48))=0,"0 ",$K$4-SUM($N$7:$N$26,$N$36:N48))) ->  | W48: =IF(#REF!="","",IF(($K$4-SUM(#REF!))=0,"0 ",$K$4-SUM(#REF!))) ->  | Y48: =IF(X48="保留金",N48*0.1,IF(X48="保留金解除",SUM($Y$7:$Y$26,$Y$36:Y47),"")) -> 
A49: 第 | B49: 34 | C49: 回 | E49: 月 | Q49: =IF(N49="","",IF(V48="0 ","",SUM($N$7:$N$26,$N$36:N48))) ->  | V49: =IF(OR(N49="",$K$4=""),"",IF(($K$4-SUM($N$7:$N$26,$N$36:N49))=0,"0 ",$K$4-SUM($N$7:$N$26,$N$36:N49))) ->  | W49: =IF(#REF!="","",IF(($K$4-SUM(#REF!))=0,"0 ",$K$4-SUM(#REF!))) ->  | Y49: =IF(X49="保留金",N49*0.1,IF(X49="保留金解除",SUM($Y$7:$Y$26,$Y$36:Y48),"")) -> 
A50: 第 | B50: 35 | C50: 回 | E50: 月 | Q50: =IF(N50="","",IF(V49="0 ","",SUM($N$7:$N$26,$N$36:N49))) ->  | V50: =IF(OR(N50="",$K$4=""),"",IF(($K$4-SUM($N$7:$N$26,$N$36:N50))=0,"0 ",$K$4-SUM($N$7:$N$26,$N$36:N50))) ->  | W50: =IF(#REF!="","",IF(($K$4-SUM(#REF!))=0,"0 ",$K$4-SUM(#REF!))) ->  | Y50: =IF(X50="保留金",N50*0.1,IF(X50="保留金解除",SUM($Y$7:$Y$26,$Y$36:Y49),"")) -> 
A51: 第 | B51: 36 | C51: 回 | E51: 月 | Q51: =IF(N51="","",IF(V50="0 ","",SUM($N$7:$N$26,$N$36:N50))) ->  | V51: =IF(OR(N51="",$K$4=""),"",IF(($K$4-SUM($N$7:$N$26,$N$36:N51))=0,"0 ",$K$4-SUM($N$7:$N$26,$N$36:N51))) ->  | W51: =IF(#REF!="","",IF(($K$4-SUM(#REF!))=0,"0 ",$K$4-SUM(#REF!))) ->  | Y51: =IF(X51="保留金",N51*0.1,IF(X51="保留金解除",SUM($Y$7:$Y$26,$Y$36:Y50),"")) -> 
A52: 第 | B52: 37 | C52: 回 | E52: 月 | Q52: =IF(N52="","",IF(V51="0 ","",SUM($N$7:$N$26,$N$36:N51))) ->  | V52: =IF(OR(N52="",$K$4=""),"",IF(($K$4-SUM($N$7:$N$26,$N$36:N52))=0,"0 ",$K$4-SUM($N$7:$N$26,$N$36:N52))) ->  | W52: =IF(#REF!="","",IF(($K$4-SUM(#REF!))=0,"0 ",$K$4-SUM(#REF!))) ->  | Y52: =IF(X52="保留金",N52*0.1,IF(X52="保留金解除",SUM($Y$7:$Y$26,$Y$36:Y51),"")) -> 
A53: 第 | B53: 38 | C53: 回 | E53: 月 | Q53: =IF(N53="","",IF(V52="0 ","",SUM($N$7:$N$26,$N$36:N52))) ->  | V53: =IF(OR(N53="",$K$4=""),"",IF(($K$4-SUM($N$7:$N$26,$N$36:N53))=0,"0 ",$K$4-SUM($N$7:$N$26,$N$36:N53))) ->  | W53: =IF(#REF!="","",IF(($K$4-SUM(#REF!))=0,"0 ",$K$4-SUM(#REF!))) ->  | Y53: =IF(X53="保留金",N53*0.1,IF(X53="保留金解除",SUM($Y$7:$Y$26,$Y$36:Y52),"")) -> 
A54: 第 | B54: 39 | C54: 回 | E54: 月 | Q54: =IF(N54="","",IF(V53="0 ","",SUM($N$7:$N$26,$N$36:N53))) ->  | V54: =IF(OR(N54="",$K$4=""),"",IF(($K$4-SUM($N$7:$N$26,$N$36:N54))=0,"0 ",$K$4-SUM($N$7:$N$26,$N$36:N54))) ->  | W54: =IF(#REF!="","",IF(($K$4-SUM(#REF!))=0,"0 ",$K$4-SUM(#REF!))) ->  | Y54: =IF(X54="保留金",N54*0.1,IF(X54="保留金解除",SUM($Y$7:$Y$26,$Y$36:Y53),"")) -> 
A55: 第 | B55: 40 | C55: 回 | E55: 月 | Q55: =IF(N55="","",IF(V54="0 ","",SUM($N$7:$N$26,$N$36:N54))) ->  | V55: =IF(OR(N55="",$K$4=""),"",IF(($K$4-SUM($N$7:$N$26,$N$36:N55))=0,"0 ",$K$4-SUM($N$7:$N$26,$N$36:N55))) ->  | W55: =IF(#REF!="","",IF(($K$4-SUM(#REF!))=0,"0 ",$K$4-SUM(#REF!))) ->  | Y55: =IF(X55="保留金",N55*0.1,IF(X55="保留金解除",SUM($Y$7:$Y$26,$Y$36:Y54),"")) -> 
J57: 請求金額累計（税抜） | N57: =SUM(N36:N55,N28) -> 0 | T57: 請求後残高金額（税抜） | W57: =IF(K4="","",IF((K4-N57)=0,"0 ",K4-N57)) -> 

Sheet 常用内訳書
A1: 常用工事内訳書
F2: 現場名称： | W2: 請求日 | Y2: =合計請求書!$R$2 -> 00:00:00
W3: 会社名 | Y3: =合計請求書!$P$7 -> 0
Q5: 法定福利費
A6: 月 | B6: 日 | C6: 作業内容・品目 | I6: 数量 | J6: 単位 | K6: 単価 | M6: 金額(税抜) | Q6: 人数 | R6: 単価 | T6: 金額(税抜) | U6: 交通費関連(税込） | X6: 備考
M7: =I7*K7 -> 0 | T7: =Q7*R7 -> 0
M8: =I8*K8 -> 0 | T8: =Q8*R8 -> 0
M9: =I9*K9 -> 0 | T9: =Q9*R9 -> 0
M10: 0 | T10: 0
M11: 0 | T11: 0
M12: 0 | T12: 0
M13: 0 | T13: 0
M14: 0 | T14: =Q14*R14 -> 0
M15: 0 | T15: 0
M16: 0 | T16: 0
M17: 0 | T17: 0
M18: 0 | T18: 0
M19: 0 | T19: 0
M20: 0 | T20: 0
M21: 0 | T21: 0
M22: 0 | T22: 0
M23: 0 | T23: 0
M24: 0 | T24: 0
M25: 0 | T25: 0
M26: 0 | T26: 0
M27: 0 | T27: 0
M28: 0 | T28: 0
M29: 0 | T29: 0
M30: 0 | T30: 0
M31: 0 | T31: 0
M32: 0 | T32: 0
L34: 常用金額小計(税抜)① | R34: 法定福利費小計(税抜)② | U34: 請求金額計(税抜)①+② | Y34: 交通費関連小計(税込)
L35: =SUM(M7:P32) -> 0 | R35: =SUM(T7:T32) -> 0 | U35: =L35+R35 -> 0 | Y35: =SUM(U7:W32) -> 0
A37: 常用工事内訳書
F38: 現場名称： | W38: 請求日 | Y38: =合計請求書!$R$2 -> 00:00:00
W39: 会社名 | Y39: =合計請求書!$P$7 -> 0
Q41: 法定福利費
A42: 月 | B42: 日 | C42: 作業内容・品目 | I42: 数量 | J42: 単位 | K42: 単価 | M42: 金額(税抜) | Q42: 人数 | R42: 単価 | T42: 金額(税抜) | U42: 交通費関連(税込） | X42: 備考
M43: =I43*K43 -> 0 | T43: =Q43*R43 -> 0
M44: =I44*K44 -> 0 | T44: =Q44*R44 -> 0
M45: =I45*K45 -> 0 | T45: =Q45*R45 -> 0
M46: 0 | T46: 0
M47: 0 | T47: 0
M48: 0 | T48: 0
M49: 0 | T49: 0
M50: 0 | T50: 0
M51: 0 | T51: 0
M52: 0 | T52: 0
M53: 0 | T53: 0
M54: 0 | T54: 0
M55: 0 | T55: 0
M56: 0 | T56: 0
M57: 0 | T57: 0
M58: 0 | T58: 0
M59: 0 | T59: 0
M60: 0 | T60: 0
M61: 0 | T61: 0
M62: 0 | T62: 0
M63: 0 | T63: 0
M64: 0 | T64: 0
M65: 0 | T65: 0
M66: 0 | T66: 0
M67: 0 | T67: 0
M68: 0 | T68: 0
L70: 常用金額小計(税抜)① | R70: 法定福利費小計(税抜)② | U70: 請求金額計(税抜)①+② | Y70: 交通費関連小計(税込)
L71: =SUM(M43:P68) -> 0 | R71: =SUM(T43:T68) -> 0 | U71: =L71+R71 -> 0 | Y71: =SUM(U43:W68) -> 0
A73: 常用工事内訳書
F74: 現場名称： | W74: 請求日 | Y74: =合計請求書!$R$2 -> 00:00:00
W75: 会社名 | Y75: =合計請求書!$P$7 -> 0
Q77: 法定福利費
A78: 月 | B78: 日 | C78: 作業内容・品目 | I78: 数量 | J78: 単位 | K78: 単価 | M78: 金額(税抜) | Q78: 人数 | R78: 単価 | T78: 金額(税抜) | U78: 交通費関連(税込） | X78: 備考
M79: =I79*K79 -> 0 | T79: =Q79*R79 -> 0
M80: =I80*K80 -> 0 | T80: =Q80*R80 -> 0
M81: =I81*K81 -> 0 | T81: =Q81*R81 -> 0
M82: 0 | T82: 0
M83: 0 | T83: 0
M84: 0 | T84: 0
M85: 0 | T85: 0
M86: 0 | T86: 0
M87: 0 | T87: 0
M88: 0 | T88: 0
M89: 0 | T89: 0
M90: 0 | T90: 0
M91: 0 | T91: 0
M92: 0 | T92: 0
M93: 0 | T93: 0
M94: 0 | T94: 0
M95: 0 | T95: 0
M96: 0 | T96: 0
M97: 0 | T97: 0
M98: 0 | T98: 0
M99: 0 | T99: 0
M100: 0 | T100: 0
M101: 0 | T101: 0
M102: 0 | T102: 0
M103: 0 | T103: 0
M104: 0 | T104: 0
L106: 常用金額小計(税抜)① | R106: 法定福利費小計(税抜)② | U106: 請求金額計(税抜)①+② | Y106: 交通費関連小計(税込)
L107: =SUM(M79:P104) -> 0 | R107: =SUM(T79:T104) -> 0 | U107: =L107+R107 -> 0 | Y107: =SUM(U79:W104) -> 0
A109: 常用工事内訳書
F110: 現場名称： | W110: 請求日 | Y110: =合計請求書!$R$2 -> 00:00:00
W111: 会社名 | Y111: =合計請求書!$P$7 -> 0
Q113: 法定福利費
A114: 月 | B114: 日 | C114: 作業内容・品目 | I114: 数量 | J114: 単位 | K114: 単価 | M114: 金額(税抜) | Q114: 人数 | R114: 単価 | T114: 金額(税抜) | U114: 交通費関連(税込） | X114: 備考
M115: =I115*K115 -> 0 | T115: =Q115*R115 -> 0
M116: =I116*K116 -> 0 | T116: =Q116*R116 -> 0
M117: =I117*K117 -> 0 | T117: =Q117*R117 -> 0
M118: 0 | T118: 0
M119: 0 | T119: 0
M120: 0 | T120: 0
M121: 0 | T121: 0
M122: 0 | T122: 0
M123: 0 | T123: 0
M124: 0 | T124: 0
M125: 0 | T125: 0
M126: 0 | T126: 0
M127: 0 | T127: 0
M128: 0 | T128: 0
M129: 0 | T129: 0
M130: 0 | T130: 0
M131: 0 | T131: 0
M132: 0 | T132: 0
M133: 0 | T133: 0
M134: 0 | T134: 0
M135: 0 | T135: 0
M136: 0 | T136: 0
M137: 0 | T137: 0
M138: 0 | T138: 0
M139: 0 | T139: 0
M140: 0 | T140: 0
L142: 常用金額小計(税抜)① | R142: 法定福利費小計(税抜)② | U142: 請求金額計(税抜)①+② | Y142: 交通費関連小計(税込)
L143: =SUM(M115:P140) -> 0 | R143: =SUM(T115:T140) -> 0 | U143: =L143+R143 -> 0 | Y143: =SUM(U115:W140) -> 0
A145: 常用工事内訳書
F146: 現場名称： | W146: 請求日 | Y146: =合計請求書!$R$2 -> 00:00:00
W147: 会社名 | Y147: =合計請求書!$P$7 -> 0
Q149: 法定福利費
A150: 月 | B150: 日 | C150: 作業内容・品目 | I150: 数量 | J150: 単位 | K150: 単価 | M150: 金額(税抜) | Q150: 人数 | R150: 単価 | T150: 金額(税抜) | U150: 交通費関連(税込） | X150: 備考
M151: =I151*K151 -> 0 | T151: =Q151*R151 -> 0
M152: =I152*K152 -> 0 | T152: =Q152*R152 -> 0
M153: =I153*K153 -> 0 | T153: =Q153*R153 -> 0
M154: 0 | T154: 0
M155: 0 | T155: 0
M156: 0 | T156: 0
M157: 0 | T157: 0
M158: 0 | T158: 0
M159: 0 | T159: 0
M160: 0 | T160: 0
M161: 0 | T161: 0
M162: 0 | T162: 0
M163: 0 | T163: 0
M164: 0 | T164: 0
M165: 0 | T165: 0
M166: 0 | T166: 0
M167: 0 | T167: 0
M168: 0 | T168: 0
M169: 0 | T169: 0
M170: 0 | T170: 0
M171: 0 | T171: 0
M172: 0 | T172: 0
M173: 0 | T173: 0
M174: 0 | T174: 0
M175: 0 | T175: 0
M176: 0 | T176: 0
L178: 常用金額小計(税抜)① | R178: 法定福利費小計(税抜)② | U178: 請求金額計(税抜)①+② | Y178: 交通費関連小計(税込)
L179: =SUM(M151:P176) -> 0 | R179: =SUM(T151:T176) -> 0 | U179: =L179+R179 -> 0 | Y179: =SUM(U151:W176) -> 0
A181: 常用工事内訳書
F182: 現場名称： | W182: 請求日 | Y182: =合計請求書!$R$2 -> 00:00:00
W183: 会社名 | Y183: =合計請求書!$P$7 -> 0
Q185: 法定福利費
A186: 月 | B186: 日 | C186: 作業内容・品目 | I186: 数量 | J186: 単位 | K186: 単価 | M186: 金額(税抜) | Q186: 人数 | R186: 単価 | T186: 金額(税抜) | U186: 交通費関連(税込） | X186: 備考
M187: =I187*K187 -> 0 | T187: =Q187*R187 -> 0
M188: =I188*K188 -> 0 | T188: =Q188*R188 -> 0
M189: =I189*K189 -> 0 | T189: =Q189*R189 -> 0
M190: 0 | T190: 0
M191: 0 | T191: 0
M192: 0 | T192: 0
M193: 0 | T193: 0
M194: 0 | T194: 0
M195: 0 | T195: 0
M196: 0 | T196: 0
M197: 0 | T197: 0
M198: 0 | T198: 0
M199: 0 | T199: 0
M200: 0 | T200: 0
M201: 0 | T201: 0
M202: 0 | T202: 0
M203: 0 | T203: 0
M204: 0 | T204: 0
M205: 0 | T205: 0
M206: 0 | T206: 0
M207: 0 | T207: 0
M208: 0 | T208: 0
M209: 0 | T209: 0
M210: 0 | T210: 0
M211: 0 | T211: 0
M212: 0 | T212: 0
L214: 常用金額小計(税抜)① | R214: 法定福利費小計(税抜)② | U214: 請求金額計(税抜)①+② | Y214: 交通費関連小計(税込)
L215: =SUM(M187:P212) -> 0 | R215: =SUM(T187:T212) -> 0 | U215: =L215+R215 -> 0 | Y215: =SUM(U187:W212) -> 0
A217: 常用工事内訳書
F218: 現場名称： | W218: 請求日 | Y218: =合計請求書!$R$2 -> 00:00:00
... 163 more rows
